Workbook

Sheet Read me - LAs
C8: JBA Strategic Flood Risk Assessment Site Screening Tool - v2.0
C10: This spreadsheet has been designed to assist local authorities with the selection of development sites for inclusion within their local plan.
C12: Note on calculations:
C13: Site boundaries have been screened against flood risk information to determine the proportion of the site at risk. The following flood risk information has been used in the assessment ● Flood Zones (from Environment Agency Flood Zones and results from detailed hydraulic models) ● Environment Agency's Risk of Flooding from Surface Water Map ● Environment Agency's Historic Flood Map ● Environment Agency's Risk of Flooding from Reservoirs Map ● JBA Groundwater Map Further information on sources of data are given in the Level 1 SFRA report
C15: Additional information:
C16: The sites have also been considered against the following information to provide additional information to support decision making ● Canal centrelines - to determine if there is a canal within 100m of the site ● Environment Agency's Areas Benefitting from Defences dataset - to determine if the site benefits from formal flood defences ● Detailed River Network dataset - to determine if their is a watercourse with a catchment less than 3km2 flowing through or adjacent to a site, which would not have been included in the Environment Agency's Flood Zones
C18: Note on Flood Zone and Surface Water percentages:
C19: The values quoted in the Level 1 Screening tab show the percentage of the site at flood risk from that particular Flood Zone / event, excluding the percentage of the site at flood risk at a higher risk Flood Zone. The total percentage of Flood Zone 3b, 3a, 2 and 1 is equal to 100%. These figures are used to apply the sequential test. For example 50% of a site is in the Flood Zones. Taking each Flood Zone individually, 50% is in Flood Zone 2 but only 30% is in Flood Zone 3a and only 10% is in Flood Zone 3b. In the Level 1 Screening tab this will be displayed as 10% in Flood Zone 3b, 20% in Flood Zone 3a (as this excludes the 10% in Flood Zone 3b), 20% in Flood Zone 2 (as this excludes the 10% in Flood Zone 3b and 20% in Flood Zone 3a) and 50% in Flood Zone 1. This seeks to avoid double counting and overlapping of flood zones, displayed as distinct seperate percentages in the screening tab. The only exception to this is Flood Zone 3a plus climate change (35% allowance for climate change were adopted under the EA guidelines) which can be larger than the existing Flood Zone 2, so is presented as a stand-alone percentage.
C21: Using the spreadsheet
C22: The spreadsheet has been designed to assist the selection of sites. A number of screening options are available at the top of the Level 1 Screening tab. Each option will allow sites to be screened against a user defined value. For example To select sites that are more than 50% in Flood Zone 2, click on 'Screen sites against a user-defined % in Flood Zone 2' icon, and enter 50 (do not include a % sign) when prompted. In the first instance of using this spreadsheet, a search of sites that are 100% in FZ1 should be taken. This will help determine whether all development needs are within the sites that are covered in this selection. In the event that they are, then no further action needs to be taken to determine which sites should be adopted in the Local Plan for development. Where development needs exists outside of the sites in FZ1, assessment of sites in FZ2 should be made. The last column and two screening buttons give an indication of whether the sites are within Flood Zone 1 at low risk of flood risk from all sources under the Council's chosen criteria: ● Site is within Flood Zone 1 ● Site is not within Flood Zone 3a plus climate change ● Site is <10% at risk from surface water flooding in the 1 in 1000-year event ● Site is <10% within highest risk category in JBA Groundwater map (groundwater is <0.025m below the surface in the 1 in 100-year event). ● Site is <25% within second highest risk category in JBA Groundwater map (groundwater is between 0.025m and 0.5m below the surface in the 1 in 100-year event) ● Site is not within the Historic Flood Map ● Site is not at risk of reservoir flooding Sewer flooding information is only provided at a postcode scale and is not suitable for a screening exercise but should be considered in any Level 2 assessment.

Sheet Level 1 Screening
A8: Site code | B8: Site Name | C8: Area (ha) | D8: Proportion of site shown to be at risk (%) | U8: Presence of a watercourse (EA designated main river and/or ordinary watercourse in the OS Open Rivers dataset ) | V8: Source of Site | W8: Is the site in FZ1 and at low risk from other sources? (see Read me tab for criteria) | X8: Justification for Level 2 Assessment
D9: Flood Zones | J9: Risk of Flooding from Surface Water (RoFSW) | O9: % within Historic Flood Map | P9: % within Risk of Flooding from Reservoirs (Dry Day) | Q9: % within Risk of Flooding from Reservoirs (Wet Day) | R9: JBA Groundwater Flood Map (depth of water level below ground surface in 100 year event) | T9: Total in high risk categories
D10: % in FZ 3b only | E10: % in FZ 3a only | F10: Total % within FZ3 | G10: % in FZ 2 only | H10: % in FZ 1 only | I10: Total % within FZ 3a 35% climate change | J10: Total % at surface water risk up to 30-yr | K10: 100yr | L10: Total % at surface water risk up to 100-yr | M10: Total % at surface water risk up to 1000 yrs | N10: Total % at surface risk up to 100-yrs + 40% Climate Change | R10: % within 0 to 0.025m category | S10: % within 0.025 to 0.5m category
A11: =Calculations!A2 -> B3 | B11: =Calculations!B2 -> West Redbourn, Redbourn, AL3 7HZ | C11: =Calculations!C2 -> 27.01710863 | D11: =Calculations!E2 -> 0 | E11: =Calculations!L2 -> 0 | F11: =D11+E11 -> 0 | G11: =Calculations!P2 -> 0 | H11: =Calculations!Q2 -> 1 | I11: =Calculations!U2 -> 0 | J11: =Calculations!AG2 -> 0.01243761183 | L11: =Calculations!AI2 -> 0.02315665433 | M11: =Calculations!AK2 -> 0.05647413665 | N11: =Calculations!AO2 -> 0.05411682638 | O11: =Calculations!AA2 -> 0 | P11: =Calculations!AE2 -> 0.005071015417 | Q11: =Calculations!AC2 -> 0.007045860356 | R11: =Calculations!AW2 -> 0 | S11: =Calculations!AU2 -> 0.005900864498 | T11: =R11+S11 -> 0.005900864498 | U11: No | V11: =Sites!E2 -> Residential | W11: =IF(AND($H11=1,I11=0,O11=0,Q11=0,$M11<0.1,$R11<0.1,$S11<0.25,$U11="No"),"Yes","No") -> No | X11: Multiple surface water flow paths present on site
A12: =Calculations!A3 -> M25 | B12: =Calculations!B3 -> Baulk Close, Harpenden, AL5 4LY | C12: =Calculations!C3 -> 0.5556204559 | D12: =Calculations!E3 -> 0.02647640965 | E12: =Calculations!L3 -> -1.393059001e-05 | F12: =D12+E12 -> 0.02646247906 | G12: =Calculations!P3 -> 0.1814263496 | H12: =Calculations!Q3 -> 0.8185736504 | I12: =Calculations!U3 -> 0.2078882504 | J12: =Calculations!AG3 -> 0 | L12: =Calculations!AI3 -> 0.004986427582 | M12: =Calculations!AK3 -> 0.08744915457 | N12: =Calculations!AO3 -> 0.06092262316 | O12: =Calculations!AA3 -> 0 | P12: =Calculations!AE3 -> 0.05420581004 | Q12: =Calculations!AC3 -> 0.1432177622 | R12: =Calculations!AW3 -> 0.01210801732 | S12: =Calculations!AU3 -> 0.0442889277 | T12: =R12+S12 -> 0.05639694502 | U12: No | V12: =Sites!E3 -> Residential | W12: =IF(AND($H12=1,I12=0,O12=0,Q12=0,$M12<0.1,$R12<0.1,$S12<0.25,$U12="No"),"Yes","No") -> No | X12: Low to moderate risk of multiple sources of flooding
A13: =Calculations!A4 -> M6 | B13: =Calculations!B4 -> South of Harpenden Lane, Redbourn, AL3 7RQ | C13: =Calculations!C4 -> 12.56411476 | D13: =Calculations!E4 -> 0.08359706705 | E13: =Calculations!L4 -> 0.04657365261 | F13: 0.1301707197 | G13: =Calculations!P4 -> 0.156213785 | H13: =Calculations!Q4 -> 0.843786215 | I13: =Calculations!U4 -> 0.2449400922 | J13: =Calculations!AG4 -> 0.1651028438 | L13: =Calculations!AI4 -> 0.2231735394 | M13: =Calculations!AK4 -> 0.4114979976 | N13: =Calculations!AO4 -> 0.3907575427 | O13: =Calculations!AA4 -> 0 | P13: =Calculations!AE4 -> 0 | Q13: =Calculations!AC4 -> 0.3396262349 | R13: =Calculations!AW4 -> 0.5149221566 | S13: =Calculations!AU4 -> 0.1233224121 | T13: 0.6382445687 | U13: Yes | V13: =Sites!E4 -> Residential | W13: No | X13: Moderate risk of multiple sources of flooding
A14: =Calculations!A5 -> M5 | B14: =Calculations!B5 -> Sewage Treatment Works, Piggottshill Lane, Harpenden, AL5 5UN | C14: =Calculations!C5 -> 4.09954747 | D14: =Calculations!E5 -> 0 | E14: =Calculations!L5 -> 0 | F14: 0 | G14: =Calculations!P5 -> 0 | H14: =Calculations!Q5 -> 1 | I14: =Calculations!U5 -> 0 | J14: =Calculations!AG5 -> 0.03120173943 | L14: =Calculations!AI5 -> 0.111479036 | M14: =Calculations!AK5 -> 0.2693613135 | N14: =Calculations!AO5 -> 0.2689580977 | O14: =Calculations!AA5 -> 0 | P14: =Calculations!AE5 -> 0 | Q14: =Calculations!AC5 -> 0 | R14: =Calculations!AW5 -> 0 | S14: =Calculations!AU5 -> 0 | T14: 0 | U14: No | V14: =Sites!E5 -> Residential | W14: No | X14: Moderate surface water flood risk
A15: =Calculations!A6 -> M26 | B15: =Calculations!B6 -> Highway Chipping Depot, Lower Luton Road, AL4 8JJ | C15: =Calculations!C6 -> 0.3392218964 | D15: =Calculations!E6 -> 0.002585025454 | E15: =Calculations!L6 -> -6.905653451e-06 | F15: 0.0025781198 | G15: =Calculations!P6 -> 0.3192363611 | H15: =Calculations!Q6 -> 0.6807636389 | I15: =Calculations!U6 -> 0.3218147539 | J15: =Calculations!AG6 -> 8.792008471e-06 | L15: =Calculations!AI6 -> 0.001213912204 | M15: =Calculations!AK6 -> 0.008502509707 | N15: =Calculations!AO6 -> 0.005796813588 | O15: =Calculations!AA6 -> 0 | P15: =Calculations!AE6 -> 0.005276508506 | Q15: =Calculations!AC6 -> 0.02183068699 | R15: =Calculations!AW6 -> 0.1655760113 | S15: =Calculations!AU6 -> 0.06449810253 | T15: 0.2300741138 | U15: No | V15: =Sites!E6 -> Residential | W15: No | X15: Moderate risk of multiple sources of flooding
A16: =Calculations!A7 -> M20 | B16: =Calculations!B7 -> Lower Luton Road, Harpenden, AL5 5AF | C16: =Calculations!C7 -> 0.7358806229 | D16: =Calculations!E7 -> 0.00490716482 | E16: =Calculations!L7 -> 1.300895756e-05 | F16: 0.004920173777 | G16: =Calculations!P7 -> 0.01762792522 | H16: =Calculations!Q7 -> 0.9823720748 | I16: =Calculations!U7 -> 0.02254808487 | J16: =Calculations!AG7 -> 0 | L16: =Calculations!AI7 -> 0 | M16: =Calculations!AK7 -> 0.01585460318 | N16: =Calculations!AO7 -> 0.0250490367 | O16: =Calculations!AA7 -> 0 | P16: =Calculations!AE7 -> 0.02672853857 | Q16: =Calculations!AC7 -> 0.1781900721 | R16: =Calculations!AW7 -> 0.5800681117 | S16: =Calculations!AU7 -> 0.0988956138 | T16: 0.6789637255 | U16: No | V16: =Sites!E7 -> Residential | W16: No | X16: High groundwater flood risk
A17: =Calculations!A8 -> B5 | B17: =Calculations!B8 -> Glinwell, Hatfield Road, St Albans, AL4 0HE | C17: =Calculations!C8 -> 20.84709747 | D17: =Calculations!E8 -> 0 | E17: =Calculations!L8 -> 0.1111713217 | F17: 0.1111713217 | G17: =Calculations!P8 -> 0.02486527549 | H17: =Calculations!Q8 -> 0.9751347245 | I17: =Calculations!U8 -> 0.1111713283 | J17: =Calculations!AG8 -> 0.02478875794 | L17: =Calculations!AI8 -> 0.05068629963 | M17: =Calculations!AK8 -> 0.2559061182 | N17: =Calculations!AO8 -> 0.2247694769 | O17: =Calculations!AA8 -> 0 | P17: =Calculations!AE8 -> 0 | Q17: =Calculations!AC8 -> 0 | R17: =Calculations!AW8 -> 0.2902871539 | S17: =Calculations!AU8 -> 0.08214275738 | T17: 0.3724299113 | U17: Yes | V17: =Sites!E8 -> Residential | W17: No | X17: Moderate fluvial, groundwater and surface water risk
A18: =Calculations!A9 -> B8 | B18: =Calculations!B9 -> Harper Lane, north of Radlett, WD7 7HU | C18: =Calculations!C9 -> 11.40124557 | D18: =Calculations!E9 -> 0 | E18: =Calculations!L9 -> 0.01363541418 | F18: 0.01363541418 | G18: =Calculations!P9 -> 0.006413005816 | H18: =Calculations!Q9 -> 0.9935869942 | I18: =Calculations!U9 -> 0.01363542262 | J18: =Calculations!AG9 -> 0 | L18: =Calculations!AI9 -> 0 | M18: =Calculations!AK9 -> 0.01648931103 | N18: =Calculations!AO9 -> 0.01254673309 | O18: =Calculations!AA9 -> 0 | P18: =Calculations!AE9 -> 0 | Q18: =Calculations!AC9 -> 0 | R18: =Calculations!AW9 -> 2.036439073e-06 | S18: =Calculations!AU9 -> 0 | T18: 2.036439073e-06 | U18: No | V18: =Sites!E9 -> Residential | W18: No | X18: Majority of site at moderate groundwater risk, low fluvial and surface water risk
A19: =Calculations!A10 -> P1 | B19: =Calculations!B10 -> Smallford Works, Smallford Lane, AL4 0SA | C19: =Calculations!C10 -> 3.335042613 | D19: =Calculations!E10 -> 0 | E19: =Calculations!L10 -> 0.0003500789758 | F19: 0.0003500789758 | G19: =Calculations!P10 -> -1.492230086e-07 | H19: =Calculations!Q10 -> 1.000000149 | I19: =Calculations!U10 -> 0.0003500758304 | J19: =Calculations!AG10 -> 0.0004070758166 | L19: =Calculations!AI10 -> 0.003484383376 | M19: =Calculations!AK10 -> 0.4622311551 | N19: =Calculations!AO10 -> 0.3832149819 | O19: =Calculations!AA10 -> 0 | P19: =Calculations!AE10 -> 0 | Q19: =Calculations!AC10 -> 0 | R19: =Calculations!AW10 -> 0.5522448654 | S19: =Calculations!AU10 -> 0.02582143918 | T19: 0.5780663046 | U19: Yes | V19: =Sites!E10 -> Residential | W19: No | X19: Moderate surface water and high groudnwater risk
A20: =Calculations!A11 -> P2 | B20: =Calculations!B11 -> Land at North Orbital Road, AL2 1DL | C20: =Calculations!C11 -> 1.882034496 | D20: =Calculations!E11 -> 0 | E20: =Calculations!L11 -> 0 | F20: 0 | G20: =Calculations!P11 -> 0 | H20: =Calculations!Q11 -> 1 | I20: =Calculations!U11 -> 0 | J20: =Calculations!AG11 -> 0.01573965756 | L20: =Calculations!AI11 -> 0.03019110792 | M20: =Calculations!AK11 -> 0.06678437675 | N20: =Calculations!AO11 -> 0.06479087642 | O20: =Calculations!AA11 -> 0 | P20: =Calculations!AE11 -> 0 | Q20: =Calculations!AC11 -> 0 | R20: =Calculations!AW11 -> 0 | S20: =Calculations!AU11 -> 0.9399265555 | T20: 0.9399265555 | U20: No | V20: =Sites!E11 -> Community Facilites | W20: No | X20: High groundwater flood risk
A21: =Calculations!A12 -> B4 | B21: =Calculations!B12 -> East St Albans, AL4 9JJ | C21: =Calculations!C12 -> 21.68629305 | D21: =Calculations!E12 -> 0 | E21: =Calculations!L12 -> 0 | F21: 0 | G21: =Calculations!P12 -> 0 | H21: =Calculations!Q12 -> 1 | I21: =Calculations!U12 -> 0 | J21: =Calculations!AG12 -> 0.002520568246 | L21: =Calculations!AI12 -> 0.02068383815 | M21: =Calculations!AK12 -> 0.08677244369 | N21: =Calculations!AO12 -> 0.076638666 | O21: =Calculations!AA12 -> 0 | P21: =Calculations!AE12 -> 0 | Q21: =Calculations!AC12 -> 0 | R21: =Calculations!AW12 -> 0 | S21: =Calculations!AU12 -> 0.3115470602 | T21: 0.3115470602 | U21: Yes | V21: =Sites!E12 -> Residential | W21: No | X21: High groundwater and low surface water risk
A22: =Calculations!A13 -> UC46 | B22: =Calculations!B13 -> Garage Blocks adj. to 76 Oakley Road and 151 Grove Road, Harpenden, AL5 1HJ | C22: =Calculations!C13 -> 0.1172502914 | D22: =Calculations!E13 -> 0 | E22: =Calculations!L13 -> 0 | F22: 0 | G22: =Calculations!P13 -> 0 | H22: =Calculations!Q13 -> 1 | I22: =Calculations!U13 -> 0 | J22: =Calculations!AG13 -> 0.0440926057 | L22: =Calculations!AI13 -> 0.1113321182 | M22: =Calculations!AK13 -> 0.4131131225 | N22: =Calculations!AO13 -> 0.3994678981 | O22: =Calculations!AA13 -> 0 | P22: =Calculations!AE13 -> 0 | Q22: =Calculations!AC13 -> 0 | R22: =Calculations!AW13 -> 0 | S22: =Calculations!AU13 -> 0 | T22: 0 | U22: No | V22: =Sites!E13 -> Residential | W22: No | X22: High surface water and moderate groundwater risk
A23: =Calculations!A14 -> UC10 | B23: =Calculations!B14 -> Garage Block rear of 109-179 Hughenden Road, St Albans, AL4 9QW | C23: =Calculations!C14 -> 0.2707832512 | D23: =Calculations!E14 -> 0 | E23: =Calculations!L14 -> 0 | F23: 0 | G23: =Calculations!P14 -> 0 | H23: =Calculations!Q14 -> 1 | I23: =Calculations!U14 -> 0 | J23: =Calculations!AG14 -> 0 | L23: =Calculations!AI14 -> 0 | M23: =Calculations!AK14 -> 0 | N23: =Calculations!AO14 -> 0 | O23: =Calculations!AA14 -> 0 | P23: =Calculations!AE14 -> 0 | Q23: =Calculations!AC14 -> 0 | R23: =Calculations!AW14 -> 0 | S23: =Calculations!AU14 -> 1.000000086 | T23: 1.000000086 | U23: No | V23: =Sites!E14 -> Residential | W23: No | X23: High groundwater flood risk
A24: =Calculations!A15 -> UC12 | B24: =Calculations!B15 -> Garage Block Between Hughenden Road and The Ridgeway, St Albans, AL4 9RH | C24: =Calculations!C15 -> 0.2218804581 | D24: =Calculations!E15 -> 0 | E24: =Calculations!L15 -> 0 | F24: 0 | G24: =Calculations!P15 -> 0 | H24: =Calculations!Q15 -> 1 | I24: =Calculations!U15 -> 0 | J24: =Calculations!AG15 -> 0 | L24: =Calculations!AI15 -> 0 | M24: =Calculations!AK15 -> 0.0005281825919 | N24: =Calculations!AO15 -> 0.0005281968884 | O24: =Calculations!AA15 -> 0 | P24: =Calculations!AE15 -> 0 | Q24: =Calculations!AC15 -> 0 | R24: =Calculations!AW15 -> 0 | S24: =Calculations!AU15 -> 1.000000894 | T24: 1.000000894 | U24: No | V24: =Sites!E15 -> Residential | W24: No | X24: High groundwater flood risk
A25: =Calculations!A16 -> UC27 | B25: =Calculations!B16 -> Berkeley House, Barnet Road, London Colney, AL2 1BG | C25: =Calculations!C16 -> 0.1445291618 | D25: =Calculations!E16 -> 0 | E25: =Calculations!L16 -> 0 | F25: 0 | G25: =Calculations!P16 -> 0.1966641726 | H25: =Calculations!Q16 -> 0.8033358274 | I25: =Calculations!U16 -> 0 | J25: =Calculations!AG16 -> 0 | L25: =Calculations!AI16 -> 0 | M25: =Calculations!AK16 -> 1.324557806e-05 | N25: =Calculations!AO16 -> 1.324787306e-05 | O25: =Calculations!AA16 -> 0.1966634274 | P25: =Calculations!AE16 -> 0.006124536583 | Q25: =Calculations!AC16 -> 0 | R25: =Calculations!AW16 -> 0 | S25: =Calculations!AU16 -> 0 | T25: 0 | U25: No | V25: =Sites!E16 -> Residential | W25: No | X25: Moderate fluvial and groundwater risk
A26: =Calculations!A17 -> UC39 | B26: =Calculations!B17 -> Garage Block to east of 8 Heath Close, Harpenden, AL5 1QN | C26: =Calculations!C17 -> 0.1276285904 | D26: =Calculations!E17 -> 0 | E26: =Calculations!L17 -> 0 | F26: 0 | G26: =Calculations!P17 -> 0 | H26: =Calculations!Q17 -> 1 | I26: =Calculations!U17 -> 0 | J26: =Calculations!AG17 -> 0.1261725678 | L26: =Calculations!AI17 -> 0.3287234381 | M26: =Calculations!AK17 -> 0.9520419389 | N26: =Calculations!AO17 -> 0.9104182151 | O26: =Calculations!AA17 -> 0 | P26: =Calculations!AE17 -> 0 | Q26: =Calculations!AC17 -> 0 | R26: =Calculations!AW17 -> 0 | S26: =Calculations!AU17 -> 0 | T26: 0 | U26: No | V26: =Sites!E17 -> Residential | W26: No | X26: High surface water flood risk
A27: =Calculations!A18 -> UC43 | B27: =Calculations!B18 -> Garage block to west of 32-46 Riverside Road, St Albans, AL1 1SD | C27: =Calculations!C18 -> 0.06049506836 | D27: =Calculations!E18 -> 0 | E27: =Calculations!L18 -> 0 | F27: 0 | G27: =Calculations!P18 -> 0 | H27: =Calculations!Q18 -> 1 | I27: =Calculations!U18 -> 0 | J27: =Calculations!AG18 -> 0 | L27: =Calculations!AI18 -> 0.5201872763 | M27: =Calculations!AK18 -> 0.8869751519 | N27: =Calculations!AO18 -> 0.812683935 | O27: =Calculations!AA18 -> 0 | P27: =Calculations!AE18 -> 0 | Q27: =Calculations!AC18 -> 0 | R27: =Calculations!AW18 -> 0 | S27: =Calculations!AU18 -> 0 | T27: 0 | U27: No | V27: =Sites!E18 -> Residential | W27: No | X27: High surface water flood risk
A28: =Calculations!A19 -> UC17 | B28: =Calculations!B19 -> Garage Block off Cotlandswick, London Colney, AL2 1ED | C28: =Calculations!C19 -> 0.1136766571 | D28: =Calculations!E19 -> 0 | E28: =Calculations!L19 -> 0 | F28: 0 | G28: =Calculations!P19 -> 0 | H28: =Calculations!Q19 -> 1 | I28: =Calculations!U19 -> 0 | J28: =Calculations!AG19 -> 0 | L28: =Calculations!AI19 -> 0.09847179938 | M28: =Calculations!AK19 -> 0.5750044152 | N28: =Calculations!AO19 -> 0.5585111575 | O28: =Calculations!AA19 -> 0 | P28: =Calculations!AE19 -> 0 | Q28: =Calculations!AC19 -> 0 | R28: =Calculations!AW19 -> 0 | S28: =Calculations!AU19 -> 0.768265404 | T28: =R28+S28 -> 0.768265404 | U28: No | V28: =Sites!E19 -> Residential | W28: No | X28: Moderate risk of all sources of flooding
A29: =Calculations!A20 -> UC32 | B29: =Calculations!B20 -> Garages off Creighton Avenue, St Albans, AL1 2LZ | C29: =Calculations!C20 -> 0.1398521309 | D29: =Calculations!E20 -> 0 | E29: =Calculations!L20 -> 0 | F29: 0 | G29: =Calculations!P20 -> 0 | H29: =Calculations!Q20 -> 1 | I29: =Calculations!U20 -> 0 | J29: =Calculations!AG20 -> 0 | L29: =Calculations!AI20 -> 0.1430081892 | M29: =Calculations!AK20 -> 0.3677285935 | N29: =Calculations!AO20 -> 0.3450836468 | O29: =Calculations!AA20 -> 0 | P29: =Calculations!AE20 -> 0 | Q29: =Calculations!AC20 -> 0 | R29: =Calculations!AW20 -> 0 | S29: =Calculations!AU20 -> 0 | T29: 0 | U29: No | V29: =Sites!E20 -> Residential | W29: No | X29: Moderate surface water flood risk
A30: =Calculations!A21 -> UC26 | B30: =Calculations!B21 -> Garage Block to Malvern Close, St Albans, AL4 9SZ | C30: =Calculations!C21 -> 0.1323684761 | D30: =Calculations!E21 -> 0 | E30: =Calculations!L21 -> 0 | F30: 0 | G30: =Calculations!P21 -> 0 | H30: =Calculations!Q21 -> 1 | I30: =Calculations!U21 -> 0 | J30: =Calculations!AG21 -> 0 | L30: =Calculations!AI21 -> 0 | M30: =Calculations!AK21 -> 0 | N30: =Calculations!AO21 -> 0 | O30: =Calculations!AA21 -> 0 | P30: =Calculations!AE21 -> 0 | Q30: =Calculations!AC21 -> 0 | R30: =Calculations!AW21 -> 0 | S30: =Calculations!AU21 -> 0.9999997122 | T30: 0.9999997122 | U30: No | V30: =Sites!E21 -> Residential | W30: No | X30: High groundwater flood risk
A31: =Calculations!A22 -> UC24 | B31: =Calculations!B22 -> Garages Rear of Hill End Lane (North), St Albans, AL4 0AE | C31: =Calculations!C22 -> 0.2076703682 | D31: =Calculations!E22 -> 0 | E31: =Calculations!L22 -> 0 | F31: 0 | G31: =Calculations!P22 -> 0 | H31: =Calculations!Q22 -> 1 | I31: =Calculations!U22 -> 0 | J31: =Calculations!AG22 -> 0.2898054447 | L31: =Calculations!AI22 -> 0.4099152374 | M31: =Calculations!AK22 -> 0.6122456051 | N31: =Calculations!AO22 -> 0.5928531914 | O31: =Calculations!AA22 -> 0 | P31: =Calculations!AE22 -> 0 | Q31: =Calculations!AC22 -> 0 | R31: =Calculations!AW22 -> 0 | S31: =Calculations!AU22 -> 0 | T31: 0 | U31: No | V31: =Sites!E22 -> Residential | W31: No | X31: High surface water flood risk
A32: =Calculations!A23 -> UC36 | B32: =Calculations!B23 -> Garages off Park Street Lane, Park Street, AL2 2ND | C32: =Calculations!C23 -> 0.1286786285 | D32: =Calculations!E23 -> 0 | E32: =Calculations!L23 -> 0 | F32: 0 | G32: =Calculations!P23 -> 0 | H32: =Calculations!Q23 -> 1 | I32: =Calculations!U23 -> 0 | J32: =Calculations!AG23 -> 0 | L32: =Calculations!AI23 -> 0.1998753194 | M32: =Calculations!AK23 -> 0.4325908376 | N32: =Calculations!AO23 -> 0.4428200185 | O32: =Calculations!AA23 -> 0 | P32: =Calculations!AE23 -> 0 | Q32: =Calculations!AC23 -> 0 | R32: =Calculations!AW23 -> 0 | S32: =Calculations!AU23 -> 0 | T32: 0 | U32: No | V32: =Sites!E23 -> Residential | W32: No | X32: Moderate surface water flood risk
A33: =Calculations!A24 -> UC49 | B33: =Calculations!B24 -> Garage Block rear of 18-30 Furse Avenue, St Albans, AL4 9NE | C33: =Calculations!C24 -> 0.1188434837 | D33: =Calculations!E24 -> 0 | E33: =Calculations!L24 -> 0 | F33: 0 | G33: =Calculations!P24 -> 0 | H33: =Calculations!Q24 -> 1 | I33: =Calculations!U24 -> 0 | J33: =Calculations!AG24 -> 0 | L33: =Calculations!AI24 -> 0 | M33: =Calculations!AK24 -> 0.0009748935522 | N33: =Calculations!AO24 -> 0.0009748640511 | O33: =Calculations!AA24 -> 0 | P33: =Calculations!AE24 -> 0 | Q33: =Calculations!AC24 -> 0 | R33: =Calculations!AW24 -> 0 | S33: =Calculations!AU24 -> 1.000001014 | T33: 1.000001014 | U33: No | V33: =Sites!E24 -> Residential | W33: No | X33: High groundwater flood risk
A34: =Calculations!A25 -> UC8 | B34: =Calculations!B25 -> Public Hall, 6 Southdown Road, Harpenden, AL5 1TE | C34: =Calculations!C25 -> 0.2636560722 | D34: =Calculations!E25 -> 0 | E34: =Calculations!L25 -> 0 | F34: 0 | G34: =Calculations!P25 -> 0 | H34: =Calculations!Q25 -> 1 | I34: =Calculations!U25 -> 0 | J34: =Calculations!AG25 -> 0.07165834757 | L34: =Calculations!AI25 -> 0.1623667728 | M34: =Calculations!AK25 -> 0.3884993622 | N34: =Calculations!AO25 -> 0.375730734 | O34: =Calculations!AA25 -> 0 | P34: =Calculations!AE25 -> 0 | Q34: =Calculations!AC25 -> 0 | R34: =Calculations!AW25 -> 0 | S34: =Calculations!AU25 -> 0 | T34: 0 | U34: No | V34: =Sites!E25 -> Residential | W34: No | X34: High surface water and moderate groundwater risk
A35: =Calculations!A26 -> OS1 | B35: =Calculations!B26 -> Land to the North of Bricket Wood, bounded by the M25 and A405 North Orbital | C35: =Calculations!C26 -> 6.523466769 | D35: =Calculations!E26 -> 0 | E35: =Calculations!L26 -> 0 | F35: 0 | G35: =Calculations!P26 -> 0 | H35: =Calculations!Q26 -> 1 | I35: =Calculations!U26 -> 0 | J35: =Calculations!AG26 -> 0.01347889526 | L35: =Calculations!AI26 -> 0.04166957719 | M35: =Calculations!AK26 -> 0.1278714808 | N35: =Calculations!AO26 -> 0.1186674367 | O35: =Calculations!AA26 -> 0 | P35: =Calculations!AE26 -> 0 | Q35: =Calculations!AC26 -> 0 | R35: =Calculations!AW26 -> 0.07027315489 | S35: =Calculations!AU26 -> 0.5450303173 | T35: =R35+S35 -> 0.6153034722 | U35: No | V35: =Sites!E26 -> Residential | W35: No | X35: High groundwater risk and low surface water risk and
B36: =Calculations!B27 -> Harpenden Station Car Park | C36: =Calculations!C27 -> 1.244361927 | D36: =Calculations!E27 -> 0 | E36: =Calculations!L27 -> 0 | F36: 0 | G36: =Calculations!P27 -> 0 | H36: =Calculations!Q27 -> 1 | I36: =Calculations!U27 -> 0 | J36: =Calculations!AG27 -> 0 | L36: =Calculations!AI27 -> 0.01333470926 | M36: =Calculations!AK27 -> 0.1161011657 | N36: =Calculations!AO27 -> 0.1043566604 | O36: =Calculations!AA27 -> 0 | P36: =Calculations!AE27 -> 0 | Q36: =Calculations!AC27 -> 0 | R36: =Calculations!AW27 -> 0 | S36: =Calculations!AU27 -> 0 | T36: 0 | U36: No | V36: =Sites!E27 -> Residential | W36: No | X36: Moderate surface water flood risk
B37: =Calculations!B28 -> 44 – 52 Lattimore Road, St Albans | C37: =Calculations!C28 -> 0.113739122 | D37: =Calculations!E28 -> 0 | E37: =Calculations!L28 -> 0 | F37: 0 | G37: =Calculations!P28 -> 0 | H37: =Calculations!Q28 -> 1 | I37: =Calculations!U28 -> 0 | J37: =Calculations!AG28 -> 0.04076146953 | L37: =Calculations!AI28 -> 0.1480353902 | M37: =Calculations!AK28 -> 0.617619587 | N37: =Calculations!AO28 -> 0.5232101947 | O37: =Calculations!AA28 -> 0 | P37: =Calculations!AE28 -> 0 | Q37: =Calculations!AC28 -> 0 | R37: =Calculations!AW28 -> 0 | S37: =Calculations!AU28 -> 0 | T37: 0 | U37: No | V37: =Sites!E28 -> Residential | W37: No | X37: High surface water flood risk
B38: =Calculations!B29 -> Car Park to the rear of Portman House, Therfield Road St Albans | C38: =Calculations!C29 -> 0.1409151627 | D38: =Calculations!E29 -> 0 | E38: =Calculations!L29 -> 0 | F38: 0 | G38: =Calculations!P29 -> 0 | H38: =Calculations!Q29 -> 1 | I38: =Calculations!U29 -> 0 | J38: =Calculations!AG29 -> 0 | L38: =Calculations!AI29 -> 0 | M38: =Calculations!AK29 -> 0.3699434868 | N38: =Calculations!AO29 -> 0.3396229476 | O38: =Calculations!AA29 -> 0 | P38: =Calculations!AE29 -> 0 | Q38: =Calculations!AC29 -> 0 | R38: =Calculations!AW29 -> 0 | S38: =Calculations!AU29 -> 0 | T38: 0 | U38: No | V38: =Sites!E29 -> Residential | W38: No | X38: Moderate surface water flood risk
B39: =Calculations!B30 -> Garage Block B off Cotlandswick, London Colney | C39: =Calculations!C30 -> 0.1184763329 | D39: =Calculations!E30 -> 0 | E39: =Calculations!L30 -> 0 | F39: 0 | G39: =Calculations!P30 -> 0 | H39: =Calculations!Q30 -> 1 | I39: =Calculations!U30 -> 0 | J39: =Calculations!AG30 -> 0.1044408225 | L39: =Calculations!AI30 -> 0.3072656827 | M39: =Calculations!AK30 -> 0.4386157441 | N39: =Calculations!AO30 -> 0.4014775177 | O39: =Calculations!AA30 -> 0 | P39: =Calculations!AE30 -> 0 | Q39: =Calculations!AC30 -> 0 | R39: =Calculations!AW30 -> 0 | S39: =Calculations!AU30 -> 1.000000023 | T39: 1.000000023 | U39: No | V39: =Sites!E30 -> Residential | W39: No | X39: High surface water and groundwater risk
B40: =Calculations!B31 -> 186 Sandridge Road, St Albans | C40: =Calculations!C31 -> 0.1939038948 | D40: =Calculations!E31 -> 0 | E40: =Calculations!L31 -> 0 | F40: 0 | G40: =Calculations!P31 -> 0 | H40: =Calculations!Q31 -> 1 | I40: =Calculations!U31 -> 0 | J40: =Calculations!AG31 -> 0 | L40: =Calculations!AI31 -> 9.164142727e-05 | M40: =Calculations!AK31 -> 0.1157526346 | N40: =Calculations!AO31 -> 0.08657736221 | O40: =Calculations!AA31 -> 0 | P40: =Calculations!AE31 -> 0 | Q40: =Calculations!AC31 -> 0 | R40: =Calculations!AW31 -> 0 | S40: =Calculations!AU31 -> 0 | T40: 0 | U40: No | V40: =Sites!E31 -> Residential | W40: No | X40: Significant surface water flow path on site
B41: =Calculations!B32 -> Motor Repair Garage, Park Street Lane, Park Street | C41: =Calculations!C32 -> 0.2922925598 | D41: =Calculations!E32 -> 0 | E41: =Calculations!L32 -> 0 | F41: 0 | G41: =Calculations!P32 -> 0 | H41: =Calculations!Q32 -> 1 | I41: =Calculations!U32 -> 0 | J41: =Calculations!AG32 -> 0.1508751693 | L41: =Calculations!AI32 -> 0.2198649579 | M41: =Calculations!AK32 -> 0.3325014575 | N41: =Calculations!AO32 -> 0.3765047351 | O41: =Calculations!AA32 -> 0 | P41: =Calculations!AE32 -> 0 | Q41: =Calculations!AC32 -> 0 | R41: =Calculations!AW32 -> 0 | S41: =Calculations!AU32 -> 0.06724549525 | T41: 0.06724549525 | U41: No | V41: =Sites!E32 -> Residential | W41: No | X41: High surface water and moderate groundwater risk
B42: =Calculations!B33 -> Griffiths Way Retail Park, St Albans AL1 2RJ | C42: =Calculations!C33 -> 6.435501685 | D42: =Calculations!E33 -> 0 | E42: =Calculations!L33 -> 0 | F42: 0 | G42: =Calculations!P33 -> 0 | H42: =Calculations!Q33 -> 1 | I42: =Calculations!U33 -> 0 | J42: =Calculations!AG33 -> 0.04754874056 | L42: =Calculations!AI33 -> 0.097629747 | M42: =Calculations!AK33 -> 0.2625973242 | N42: =Calculations!AO33 -> 0.2467613144 | O42: =Calculations!AA33 -> 0 | P42: =Calculations!AE33 -> 0 | Q42: =Calculations!AC33 -> 0 | R42: =Calculations!AW33 -> 0 | S42: =Calculations!AU33 -> 0 | T42: 0 | U42: No | V42: =Sites!E33 -> Residential | W42: No | X42: Moderate surface water and groundwater risk
B43: =Calculations!B34 -> Affinity Water, 107 Holywell Hill Road St Albans | C43: =Calculations!C34 -> 1.223044198 | D43: =Calculations!E34 -> 0.1889669854 | E43: =Calculations!L34 -> 0.122052406 | F43: 0.3110193915 | G43: =Calculations!P34 -> 0.3533649253 | H43: =Calculations!Q34 -> 0.6466350747 | I43: =Calculations!U34 -> 0.3818475987 | J43: =Calculations!AG34 -> 0.1137468656 | L43: =Calculations!AI34 -> 0.2329868236 | M43: =Calculations!AK34 -> 0.752404374 | N43: =Calculations!AO34 -> 0.6923533108 | O43: =Calculations!AA34 -> 0 | P43: =Calculations!AE34 -> 0.1204983466 | Q43: =Calculations!AC34 -> 0.8597421388 | R43: =Calculations!AW34 -> 0.6259285742 | S43: =Calculations!AU34 -> 0.02710931335 | T43: 0.6530378876 | U43: No | V43: =Sites!E34 -> Residential | W43: No | X43: High risk of fluvial, surface water and groundwater risk
B44: =Calculations!B35 -> 50 - 54 Lemsford Road St Albans | C44: =Calculations!C35 -> 0.53290888 | D44: =Calculations!E35 -> 0 | E44: =Calculations!L35 -> 0 | F44: 0 | G44: =Calculations!P35 -> 0 | H44: =Calculations!Q35 -> 1 | I44: =Calculations!U35 -> 0 | J44: =Calculations!AG35 -> 0 | L44: =Calculations!AI35 -> 0.009084407851 | M44: =Calculations!AK35 -> 0.05452489111 | N44: =Calculations!AO35 -> 0.05371487805 | O44: =Calculations!AA35 -> 0 | P44: =Calculations!AE35 -> 0 | Q44: =Calculations!AC35 -> 0 | R44: =Calculations!AW35 -> 0 | S44: =Calculations!AU35 -> 0 | T44: 0 | U44: No | V44: =Sites!E35 -> Residential | W44: Yes | X44: Significant surface water flow path on site
B45: =Calculations!B36 -> Ariston Works | C45: =Calculations!C36 -> 2.517449888 | D45: =Calculations!E36 -> 0 | E45: =Calculations!L36 -> 0 | F45: 0 | G45: =Calculations!P36 -> 0 | H45: =Calculations!Q36 -> 1 | I45: =Calculations!U36 -> 0 | J45: =Calculations!AG36 -> 0.006991201724 | L45: =Calculations!AI36 -> 0.009056784051 | M45: =Calculations!AK36 -> 0.05099555504 | N45: =Calculations!AO36 -> 0.0285835164 | O45: =Calculations!AA36 -> 0 | P45: =Calculations!AE36 -> 0 | Q45: =Calculations!AC36 -> 0 | R45: =Calculations!AW36 -> 0 | S45: =Calculations!AU36 -> 0 | T45: 0 | U45: No | V45: =Sites!E36 -> Residential with community facilities and primary school | W45: Yes | X45: Surface Water ponding at lower lying parts of the site
B46: =Calculations!B37 -> Car Park and Garage Block to rear of Telford Court Alma Road St Albans | C46: =Calculations!C37 -> 0.4845299004 | D46: =Calculations!E37 -> 0 | E46: =Calculations!L37 -> 0 | F46: 0 | G46: =Calculations!P37 -> 0 | H46: =Calculations!Q37 -> 1 | I46: =Calculations!U37 -> 0 | J46: =Calculations!AG37 -> 0.003009147578 | L46: =Calculations!AI37 -> 0.0384943733 | M46: =Calculations!AK37 -> 0.05295948934 | N46: =Calculations!AO37 -> 0.05279830718 | O46: =Calculations!AA37 -> 0 | P46: =Calculations!AE37 -> 0 | Q46: =Calculations!AC37 -> 0 | R46: =Calculations!AW37 -> 0 | S46: =Calculations!AU37 -> 0 | T46: 0 | U46: No | V46: =Sites!E37 -> Residential | W46: Yes | X46: Surface Water ponding at lower lying parts of the site
B47: =Calculations!B38 -> 52 Victoria Street and 16 New Kent Road, St Albans | C47: =Calculations!C38 -> 0.056 | D47: =Calculations!E38 -> 0 | E47: =Calculations!L38 -> 0 | F47: 0 | G47: =Calculations!P38 -> 0 | H47: =Calculations!Q38 -> 1 | I47: =Calculations!U38 -> 0 | J47: =Calculations!AG38 -> 0 | L47: =Calculations!AI38 -> 0 | M47: =Calculations!AK38 -> 0 | N47: =Calculations!AO38 -> 0 | O47: =Calculations!AA38 -> 0 | P47: =Calculations!AE38 -> 0 | Q47: =Calculations!AC38 -> 0 | R47: =Calculations!AW38 -> 0 | S47: =Calculations!AU38 -> 0 | T47: 0 | U47: No | V47: =Sites!E38 -> Residential | W47: Yes | X47: Not taken forward for Level 2
B48: =Calculations!B39 -> Brethrens Meeting Hall Blackwater Lane | C48: =Calculations!C39 -> 1.655 | D48: =Calculations!E39 -> 0 | E48: =Calculations!L39 -> 0 | F48: 0 | G48: =Calculations!P39 -> 0 | H48: =Calculations!Q39 -> 1 | I48: =Calculations!U39 -> 0 | J48: =Calculations!AG39 -> 0 | L48: =Calculations!AI39 -> 0 | M48: =Calculations!AK39 -> 0 | N48: =Calculations!AO39 -> 0 | O48: =Calculations!AA39 -> 0 | P48: =Calculations!AE39 -> 0 | Q48: =Calculations!AC39 -> 0 | R48: =Calculations!AW39 -> 0 | S48: =Calculations!AU39 -> 0 | T48: 0 | U48: No | V48: =Sites!E39 -> Residential | W48: Yes | X48: Not taken forward for Level 2
B49: =Calculations!B40 -> Petrol Filling Station 551 Watford Road Chiswell Green | C49: =Calculations!C40 -> 0.69 | D49: =Calculations!E40 -> 0 | E49: =Calculations!L40 -> 0 | F49: 0 | G49: =Calculations!P40 -> 0 | H49: =Calculations!Q40 -> 1 | I49: =Calculations!U40 -> 0 | J49: =Calculations!AG40 -> 0 | L49: =Calculations!AI40 -> 0 | M49: =Calculations!AK40 -> 0.005 | N49: =Calculations!AO40 -> 0.004752902737 | O49: =Calculations!AA40 -> 0 | P49: =Calculations!AE40 -> 0 | Q49: =Calculations!AC40 -> 0 | R49: =Calculations!AW40 -> 0 | S49: =Calculations!AU40 -> 0 | T49: 0 | U49: No | V49: =Sites!E40 -> Residential | W49: Yes | X49: Not taken forward for Level 2
B50: =Calculations!B41 -> Telephone Exchange Bowers Way Harpenden AL5 4EP | C50: =Calculations!C41 -> 0.219 | D50: =Calculations!E41 -> 0 | E50: =Calculations!L41 -> 0 | F50: 0 | G50: =Calculations!P41 -> 0 | H50: =Calculations!Q41 -> 1 | I50: =Calculations!U41 -> 0 | J50: =Calculations!AG41 -> 0 | L50: =Calculations!AI41 -> 0 | M50: =Calculations!AK41 -> 0.002 | N50: =Calculations!AO41 -> 0.0316870479 | O50: =Calculations!AA41 -> 0 | P50: =Calculations!AE41 -> 0 | Q50: =Calculations!AC41 -> 0 | R50: =Calculations!AW41 -> 0 | S50: =Calculations!AU41 -> 0 | T50: 0 | U50: No | V50: =Sites!E41 -> Residential | W50: Yes | X50: Not taken forward for Level 2
T52: =COUNTIF(T11:T50,">0") -> 19

Sheet Calculations
A1: Site Code | B1: Name | C1: Site (ha) | D1: FZ3b (ha) | E1: FZ3b (%) | F1: FZ3b +21% CC (ha) | G1: FZ3b +21% CC (%) | H1: FZ3b +35% CC (ha) | I1: FZ3b +35% CC (%) | J1: FZ3a (ha) | K1: FZ3a (%) | L1: FZ3a only (%) | M1: FZ2 (ha) | N1: FZ2 (%) | P1: FZ2 only (%) | Q1: FZ1 (%) | R1: FZ3a+CC21% (ha) | S1: FZ3a+CC 21% (%) | T1: FZ3a+CC 35% (ha) | U1: FZ3a+CC 35% (%) | V1: FZ2+CC21% (ha) | W1: FZ2+CC21% (%) | X1: FZ2+CC35% (ha) | Y1: FZ2+CC35% (%) | Z1: HFM (ha) | AA1: HFM (%) | AB1: RES_WET (ha) | AC1: RES_WET (%) | AD1: RES_DRY (ha) | AE1: RES_DRY (%) | AF1: SW30 (ha) | AG1: SW30 (%) | AH1: SW100 (ha) | AI1: SW100 (%) | AJ1: SW1000 (ha) | AK1: SW1000 (%) | AL1: SW30 +CC (ha) | AM1: SW30 +CC (%) | AN1: SW100 +CC (ha) | AO1: SW100 +CC (%) | AP1: Groundwater Cat 1 (>5m below ground in 1 in 100-year) | AR1: Groundwater Cat 2 (0.5 - 5m below ground in 1 in 100-year) | AT1: Groundwater Cat 3 (0.025 - 0.5m below ground in 1 in 100-year) | AV1: Groundwater Cat 4 (<0.025m below ground in 1 in 100-year) | AX1: Total groundwater in Cat 3 or 4 | AY1: RoFRS_High _<30yr Only (ha) | AZ1: RoFRS_High Only (%) | BA1: RoFRS_Med _30yr to 100yr Only (ha) | BB1: RoFRS_Med Only (%) | BC1: RoFRS_Low 100yr to 1000yr Only (ha) | BD1: RoFRS_Low Only (%) | BE1: RoFRS_Very Low (>1000yr) Only (%) | BF1: RoFRS_Very Low (%) | BG1: Historic Landfill (ha) | BH1: Historic_Landfill (%) | BI1: SPZ1 (ha) | BJ1: SPZ1 (%) | BK1: SPZ2 (ha) | BL1: SPZ2 (%) | BM1: SPZ3 (ha) | BN1: SPZ3 (%)
A2: B3 | B2: West Redbourn, Redbourn, AL3 7HZ | C2: 27.01710863 | D2: 0 | E2: =D2/C2 -> 0 | F2: 0 | G2: =F2/C2 -> 0 | H2: 0 | I2: =H2/C2 -> 0 | J2: 0 | K2: =J2/C2 -> 0 | L2: =K2-E2 -> 0 | M2: 0 | N2: =M2/C2 -> 0 | P2: =N2-K2 -> 0 | Q2: =100%-P2 -> 1 | R2: 0 | S2: =R2/C2 -> 0 | T2: 0 | U2: =T2/C2 -> 0 | V2: 0 | W2: =V2/C2 -> 0 | X2: 0 | Y2: =X2/C2 -> 0 | Z2: 0 | AA2: =Z2/C2 -> 0 | AB2: 0.1903587747 | AC2: =AB2/C2 -> 0.007045860356 | AD2: 0.1370041744 | AE2: =AD2/C2 -> 0.005071015417 | AF2: 0.3360283099 | AG2: =AF2/C2 -> 0.01243761183 | AH2: 0.6256258455 | AI2: =AH2/C2 -> 0.02315665433 | AJ2: 1.525767885 | AK2: =AJ2/C2 -> 0.05647413665 | AL2: 0.9027697622 | AM2: =AL2/C2 -> 0.03341474376 | AN2: 1.462080177 | AO2: =AN2/C2 -> 0.05411682638 | AP2: 0.8926378044 | AQ2: =AP2/C2 -> 0.0330397237 | AR2: 25.68401208 | AS2: =AR2/C2 -> 0.9506573196 | AT2: 0.1594242972 | AU2: =AT2/C2 -> 0.005900864498 | AV2: 0 | AW2: =AV2/C2 -> 0 | AX2: =AU2+AW2 -> 0.005900864498 | AY2: 0 | AZ2: =AY2/C2 -> 0 | BA2: 0 | BB2: =BA2/C2 -> 0 | BC2: 0 | BD2: =BC2/C2 -> 0 | BE2: 0 | BF2: =BE2/C2 -> 0 | BG2: 0 | BH2: =BG2/C2 -> 0 | BI2: 0 | BJ2: =BI2/C2 -> 0 | BK2: 0 | BL2: =BK2/C2 -> 0 | BM2: 27.01710883 | BN2: =BM2/C2 -> 1.000000007
A3: M25 | B3: Baulk Close, Harpenden, AL5 4LY | C3: 0.5556204559 | D3: 0.0147108348 | E3: 0.02647640965 | F3: 0.0147108348 | G3: 0.02647640965 | H3: 0.0147108348 | I3: 0.02647640965 | J3: 0.01470309468 | K3: 0.02646247906 | L3: =K3-E3 -> -1.393059001e-05 | M3: 0.1155072857 | N3: 0.2078888286 | P3: =N3-K3 -> 0.1814263496 | Q3: =100%-P3 -> 0.8185736504 | R3: 0.1155069644 | S3: 0.2078882504 | T3: 0.1155069644 | U3: 0.2078882504 | V3: 0.1155069644 | W3: 0.2078882504 | X3: 0.1155069644 | Y3: 0.2078882504 | Z3: 0 | AA3: =Z3/C3 -> 0 | AB3: 0.07957471832 | AC3: =AB3/C3 -> 0.1432177622 | AD3: 0.03011785689 | AE3: =AD3/C3 -> 0.05420581004 | AF3: 0 | AG3: =AF3/C3 -> 0 | AH3: 0.002770561166 | AI3: =AH3/C3 -> 0.004986427582 | AJ3: 0.04858853914 | AK3: 0.08744915457 | AL3: 0.007877445915 | AM3: =AL3/C3 -> 0.01417774639 | AN3: 0.03384985566 | AO3: =AN3/C3 -> 0.06092262316 | AP3: 0 | AQ3: =AP3/C3 -> 0 | AR3: 0.5242857672 | AS3: =AR3/C3 -> 0.9436041485 | AT3: 0.0246078342 | AU3: =AT3/C3 -> 0.0442889277 | AV3: 0.006727462106 | AW3: =AV3/C3 -> 0.01210801732 | AX3: =AU3+AW3 -> 0.05639694502 | AY3: 0 | AZ3: =AY3/C3 -> 0 | BA3: 0.07483479546 | BB3: =BA3/C3 -> 0.1346868976 | BC3: 0.04067042528 | BD3: =BC3/C3 -> 0.07319821445 | BE3: 0.03796217644 | BF3: =BE3/C3 -> 0.06832393594 | BG3: 0 | BH3: =BG3/C3 -> 0 | BI3: 0 | BJ3: =BI3/C3 -> 0 | BK3: 0 | BL3: =BK3/C3 -> 0 | BM3: 0.5556210068 | BN3: =BM3/C3 -> 1.000000991
A4: M6 | B4: South of Harpenden Lane, Redbourn, AL3 7RQ | C4: 12.56411476 | D4: 1.050323144 | E4: 0.08359706705 | F4: 1.085706273 | G4: 0.08641327248 | H4: 1.223355289 | I4: 0.0973689999 | J4: 1.635479861 | K4: 0.1301707197 | L4: 0.04657365261 | M4: 3.598167784 | N4: 0.2863845047 | P4: 0.156213785 | Q4: 0.843786215 | R4: 2.428258149 | S4: 0.1932693385 | T4: 3.077455429 | U4: 0.2449400922 | V4: 3.825889852 | W4: 0.3045093048 | X4: 4.125126668 | Y4: 0.3283260895 | Z4: 0 | AA4: 0 | AB4: 4.267102992 | AC4: 0.3396262349 | AD4: 0 | AE4: 0 | AF4: 2.074371077 | AG4: 0.1651028438 | AH4: 2.803977962 | AI4: 0.2231735394 | AJ4: 5.170108067 | AK4: 0.4114979976 | AL4: 3.635570089 | AM4: 0.28936142 | AN4: 4.909522612 | AO4: 0.3907575427 | AP4: 0 | AQ4: 0 | AR4: 4.545138122 | AS4: 0.3617555401 | AT4: 1.549436939 | AU4: 0.1233224121 | AV4: 6.46954107 | AW4: 0.5149221566 | AX4: 0.6382445687 | AY4: 0.7613975188 | AZ4: 0.06060096816 | BA4: 0.4721462421 | BB4: 0.03757895013 | BC4: 2.363295288 | BD4: 0.1880988301 | BE4: 0.01327155788 | BF4: 0.001056306643 | BG4: 0 | BH4: 0 | BI4: 0 | BJ4: 0 | BK4: 0 | BL4: 0 | BM4: 12.5641162 | BN4: 1.000000115
A5: M5 | B5: Sewage Treatment Works, Piggottshill Lane, Harpenden, AL5 5UN | C5: 4.09954747 | D5: 0 | E5: 0 | F5: 0 | G5: 0 | H5: 0 | I5: 0 | J5: 0 | K5: 0 | L5: 0 | M5: 0 | N5: 0 | P5: 0 | Q5: 1 | R5: 0 | S5: 0 | T5: 0 | U5: 0 | V5: 0 | W5: 0 | X5: 0 | Y5: 0 | Z5: 0 | AA5: 0 | AB5: 0 | AC5: 0 | AD5: 0 | AE5: 0 | AF5: 0.1279130119 | AG5: 0.03120173943 | AH5: 0.4570135998 | AI5: 0.111479036 | AJ5: 1.104259491 | AK5: 0.2693613135 | AL5: 0.8472576458 | AM5: 0.2066710172 | AN5: 1.102606489 | AO5: 0.2689580977 | AP5: 0.2942342133 | AQ5: 0.071772364 | AR5: 3.805312874 | AS5: 0.9282275427 | AT5: 0 | AU5: 0 | AV5: 0 | AW5: 0 | AX5: 0 | AY5: 0 | AZ5: 0 | BA5: 0 | BB5: 0 | BC5: 0 | BD5: 0 | BE5: 0 | BF5: 0 | BG5: 0 | BH5: 0 | BI5: 0 | BJ5: 0 | BK5: 0 | BL5: 0 | BM5: 4.099547299 | BN5: 0.9999999583
A6: M26 | B6: Highway Chipping Depot, Lower Luton Road, AL4 8JJ | C6: 0.3392218964 | D6: 0.0008768972366 | E6: 0.002585025454 | F6: 0.0008768972366 | G6: 0.002585025454 | H6: 0.0008768972366 | I6: 0.002585025454 | J6: 0.0008745546878 | K6: 0.0025781198 | L6: -6.905653451e-06 | M6: 0.1091665185 | N6: 0.3218144809 | P6: 0.3192363611 | Q6: 0.6807636389 | R6: 0.1091666111 | S6: 0.3218147539 | T6: 0.1091666111 | U6: 0.3218147539 | V6: 0.1091666111 | W6: 0.3218147539 | X6: 0.1091666111 | Y6: 0.3218147539 | Z6: 0 | AA6: 0 | AB6: 0.00740544704 | AC6: 0.02183068699 | AD6: 0.001789907222 | AE6: 0.005276508506 | AF6: 2.982441786e-06 | AG6: 8.792008471e-06 | AH6: 0.0004117855999 | AI6: 0.001213912204 | AJ6: 0.002884237467 | AK6: 0.008502509707 | AL6: 0.0007621422396 | AM6: 0.002246736569 | AN6: 0.001966406098 | AO6: 0.005796813588 | AP6: 0 | AQ6: 0 | AR6: 0.2611758382 | AS6: 0.7699262372 | AT6: 0.02187916865 | AU6: 0.06449810253 | AV6: 0.05616700855 | AW6: 0.1655760113 | AX6: 0.2300741138 | AY6: 0.07668923981 | AZ6: 0.226073967 | BA6: 0.0275479649 | BB6: 0.08120927688 | BC6: 0.004736666778 | BD6: 0.01396332851 | BE6: 0 | BF6: 0 | BG6: 0 | BH6: 0 | BI6: 0.3392220089 | BJ6: 1.000000332 | BK6: 0.3392220089 | BL6: 1.000000332 | BM6: 0.3392220089 | BN6: 1.000000332
A7: M20 | B7: Lower Luton Road, Harpenden, AL5 5AF | C7: 0.7358806229 | D7: 0.003611087504 | E7: 0.00490716482 | F7: 0.003611087504 | G7: 0.00490716482 | H7: 0.003611087504 | I7: 0.00490716482 | J7: 0.003620660544 | K7: 0.004920173777 | L7: 1.300895756e-05 | M7: 0.01659270914 | N7: 0.022548099 | P7: 0.01762792522 | Q7: 0.9823720748 | R7: 0.01659269874 | S7: 0.02254808487 | T7: 0.01659269874 | U7: 0.02254808487 | V7: 0.01659269874 | W7: 0.02254808487 | X7: 0.01659269874 | Y7: 0.02254808487 | Z7: 0 | AA7: 0 | AB7: 0.1311266212 | AC7: 0.1781900721 | AD7: 0.01966901361 | AE7: 0.02672853857 | AF7: 0 | AG7: 0 | AH7: 0 | AI7: 0 | AJ7: 0.01166709527 | AK7: 0.01585460318 | AL7: 0.003358310971 | AM7: 0.004563662728 | AN7: 0.01843310073 | AO7: 0.0250490367 | AP7: 0 | AQ7: 0 | AR7: 0.2362446742 | AS7: 0.321036683 | AT7: 0.07277536588 | AU7: 0.0988956138 | AV7: 0.4268608833 | AW7: 0.5800681117 | AX7: 0.6789637255 | AY7: 0 | AZ7: 0 | BA7: 0.01414959244 | BB7: 0.01922810848 | BC7: 0.00244313831 | BD7: 0.003320019897 | BE7: 0 | BF7: 0 | BG7: 0 | BH7: 0 | BI7: 0 | BJ7: 0 | BK7: 0 | BL7: 0 | BM7: 0.7358806713 | BN7: 1.000000066
A8: B5 | B8: Glinwell, Hatfield Road, St Albans, AL4 0HE | C8: 20.84709747 | D8: 0 | E8: 0 | F8: 0 | G8: 0 | H8: 0 | I8: 0 | J8: 2.31759938 | K8: 0.1111713217 | L8: 0.1111713217 | M8: 2.835968202 | N8: 0.1360365972 | P8: 0.02486527549 | Q8: 0.9751347245 | R8: 2.317599517 | S8: 0.1111713283 | T8: 2.317599517 | U8: 0.1111713283 | V8: 2.835967957 | W8: 0.1360365855 | X8: 2.835967957 | Y8: 0.1360365855 | Z8: 0 | AA8: 0 | AB8: 0 | AC8: 0 | AD8: 0 | AE8: 0 | AF8: 0.5167736527 | AG8: 0.02478875794 | AH8: 1.056662229 | AI8: 0.05068629963 | AJ8: 5.334899789 | AK8: 0.2559061182 | AL8: 2.112091233 | AM8: 0.1013134436 | AN8: 4.685791192 | AO8: 0.2247694769 | AP8: 0 | AQ8: 0 | AR8: 0 | AS8: 0 | AT8: 1.712438069 | AU8: 0.08214275738 | AV8: 6.051644591 | AW8: 0.2902871539 | AX8: 0.3724299113 | AY8: 0.7065709104 | AZ8: 0.03389301132 | BA8: 2.128295245 | BB8: 0.1020907226 | BC8: 0 | BD8: 0 | BE8: 0 | BF8: 0 | BG8: 0 | BH8: 0 | BI8: 0 | BJ8: 0 | BK8: 19.55801439 | BL8: 0.9381648653 | BM8: 20.8470975 | BN8: 1.000000002
A9: B8 | B9: Harper Lane, north of Radlett, WD7 7HU | C9: 11.40124557 | D9: 0 | E9: 0 | F9: 0 | G9: 0 | H9: 0 | I9: 0 | J9: 0.1554607056 | K9: 0.01363541418 | L9: 0.01363541418 | M9: 0.2285769597 | N9: 0.02004842 | P9: 0.006413005816 | Q9: 0.9935869942 | R9: 0.1554608017 | S9: 0.01363542262 | T9: 0.1554608017 | U9: 0.01363542262 | V9: 0.2285772637 | W9: 0.02004844666 | X9: 0.2285772637 | Y9: 0.02004844666 | Z9: 0 | AA9: 0 | AB9: 0 | AC9: 0 | AD9: 0 | AE9: 0 | AF9: 0 | AG9: 0 | AH9: 0 | AI9: 0 | AJ9: 0.1879986843 | AK9: 0.01648931103 | AL9: 0.009955322324 | AM9: 0.000873178484 | AN9: 0.1430483851 | AO9: 0.01254673309 | AP9: 4.676990993 | AQ9: 0.4102175472 | AR9: 2.839220305 | AS9: 0.2490272039 | AT9: 0 | AU9: 0 | AV9: 2.321794196e-05 | AW9: 2.036439073e-06 | AX9: 2.036439073e-06 | AY9: 0 | AZ9: 0 | BA9: 0.2262404885 | BB9: 0.01984348877 | BC9: 0 | BD9: 0 | BE9: 0 | BF9: 0 | BG9: 0 | BH9: 0 | BI9: 11.40124468 | BJ9: 0.9999999222 | BK9: 11.40124468 | BL9: 0.9999999222 | BM9: 11.40124468 | BN9: 0.9999999222
A10: P1 | B10: Smallford Works, Smallford Lane, AL4 0SA | C10: 3.335042613 | D10: 0 | E10: 0 | F10: 0 | G10: 0 | H10: 0 | I10: 0 | J10: 0.001167528302 | K10: 0.0003500789758 | L10: 0.0003500789758 | M10: 0.001167030637 | N10: 0.0003499297527 | P10: -1.492230086e-07 | Q10: 1.000000149 | R10: 0.001167517812 | S10: 0.0003500758304 | T10: 0.001167517812 | U10: 0.0003500758304 | V10: 0.001167017698 | W10: 0.0003499258729 | X10: 0.001167017698 | Y10: 0.0003499258729 | Z10: 0 | AA10: 0 | AB10: 0 | AC10: 0 | AD10: 0 | AE10: 0 | AF10: 0.001357615195 | AG10: 0.0004070758166 | AH10: 0.01162056704 | AI10: 0.003484383376 | AJ10: 1.541560599 | AK10: 0.4622311551 | AL10: 0.02652605154 | AM10: 0.007953736914 | AN10: 1.278038295 | AO10: 0.3832149819 | AP10: 0 | AQ10: 0 | AR10: 0 | AS10: 0 | AT10: 0.0861156 | AU10: 0.02582143918 | AV10: 1.841760159 | AW10: 0.5522448654 | AX10: 0.5780663046 | AY10: 0 | AZ10: 0 | BA10: 0.001167055829 | BB10: 0.0003499373065 | BC10: 0 | BD10: 0 | BE10: 0 | BF10: 0 | BG10: 0.01082719872 | BH10: 0.003246494866 | BI10: 0 | BJ10: 0 | BK10: 3.335042676 | BL10: 1.000000019 | BM10: 3.335042676 | BN10: 1.000000019
A11: P2 | B11: Land at North Orbital Road, AL2 1DL | C11: 1.882034496 | D11: 0 | E11: 0 | F11: 0 | G11: 0 | H11: 0 | I11: 0 | J11: 0 | K11: 0 | L11: 0 | M11: 0 | N11: 0 | P11: 0 | Q11: 1 | R11: 0 | S11: 0 | T11: 0 | U11: 0 | V11: 0 | W11: 0 | X11: 0 | Y11: 0 | Z11: 0 | AA11: 0 | AB11: 0 | AC11: 0 | AD11: 0 | AE11: 0 | AF11: 0.02962257849 | AG11: 0.01573965756 | AH11: 0.05682070658 | AI11: 0.03019110792 | AJ11: 0.1256905009 | AK11: 0.06678437675 | AL11: 0.07009191014 | AM11: 0.03724262774 | AN11: 0.1219386645 | AO11: 0.06479087642 | AP11: 0 | AQ11: 0 | AR11: 0 | AS11: 0 | AT11: 1.768974201 | AU11: 0.9399265555 | AV11: 0 | AW11: 0 | AX11: 0.9399265555 | AY11: 0 | AZ11: 0 | BA11: 0 | BB11: 0 | BC11: 0 | BD11: 0 | BE11: 0 | BF11: 0 | BG11: 0 | BH11: 0 | BI11: 0 | BJ11: 0 | BK11: 1.882035039 | BL11: 1.000000288 | BM11: 1.882035039 | BN11: 1.000000288
A12: B4 | B12: East St Albans, AL4 9JJ | C12: 21.68629305 | D12: 0 | E12: 0 | F12: 0 | G12: 0 | H12: 0 | I12: 0 | J12: 0 | K12: 0 | L12: 0 | M12: 0 | N12: 0 | P12: 0 | Q12: 1 | R12: 0 | S12: 0 | T12: 0 | U12: 0 | V12: 0 | W12: 0 | X12: 0 | Y12: 0 | Z12: 0 | AA12: 0 | AB12: 0 | AC12: 0 | AD12: 0 | AE12: 0 | AF12: 0.05466178163 | AG12: 0.002520568246 | AH12: 0.4485557756 | AI12: 0.02068383815 | AJ12: 1.881772642 | AK12: 0.08677244369 | AL12: 0.8912000487 | AM12: 0.04109508465 | AN12: 1.66200857 | AO12: 0.076638666 | AP12: 0 | AQ12: 0 | AR12: 0 | AS12: 0 | AT12: 6.756300847 | AU12: 0.3115470602 | AV12: 0 | AW12: 0 | AX12: 0.3115470602 | AY12: 0 | AZ12: 0 | BA12: 0 | BB12: 0 | BC12: 0 | BD12: 0 | BE12: 0 | BF12: 0 | BG12: 0 | BH12: 0 | BI12: 0 | BJ12: 0 | BK12: 0 | BL12: 0 | BM12: 21.68629346 | BN12: 1.000000019
A13: UC46 | B13: Garage Blocks adj. to 76 Oakley Road and 151 Grove Road, Harpenden, AL5 1HJ | C13: 0.1172502914 | D13: 0 | E13: 0 | F13: 0 | G13: 0 | H13: 0 | I13: 0 | J13: 0 | K13: 0 | L13: 0 | M13: 0 | N13: 0 | P13: 0 | Q13: 1 | R13: 0 | S13: 0 | T13: 0 | U13: 0 | V13: 0 | W13: 0 | X13: 0 | Y13: 0 | Z13: 0 | AA13: 0 | AB13: 0 | AC13: 0 | AD13: 0 | AE13: 0 | AF13: 0.005169870869 | AG13: 0.0440926057 | AH13: 0.01305372331 | AI13: 0.1113321182 | AJ13: 0.04843763401 | AK13: 0.4131131225 | AL13: 0.02524822977 | AM13: 0.2153361792 | AN13: 0.04683772747 | AO13: 0.3994678981 | AP13: 0 | AQ13: 0 | AR13: 0.1172504074 | AS13: 1.000000989 | AT13: 0 | AU13: 0 | AV13: 0 | AW13: 0 | AX13: 0 | AY13: 0 | AZ13: 0 | BA13: 0 | BB13: 0 | BC13: 0 | BD13: 0 | BE13: 0 | BF13: 0 | BG13: 0 | BH13: 0 | BI13: 0 | BJ13: 0 | BK13: 0 | BL13: 0 | BM13: 0.1172504074 | BN13: 1.000000989
A14: UC10 | B14: Garage Block rear of 109-179 Hughenden Road, St Albans, AL4 9QW | C14: 0.2707832512 | D14: 0 | E14: 0 | F14: 0 | G14: 0 | H14: 0 | I14: 0 | J14: 0 | K14: 0 | L14: 0 | M14: 0 | N14: 0 | P14: 0 | Q14: 1 | R14: 0 | S14: 0 | T14: 0 | U14: 0 | V14: 0 | W14: 0 | X14: 0 | Y14: 0 | Z14: 0 | AA14: 0 | AB14: 0 | AC14: 0 | AD14: 0 | AE14: 0 | AF14: 0 | AG14: 0 | AH14: 0 | AI14: 0 | AJ14: 0 | AK14: 0 | AL14: 0 | AM14: 0 | AN14: 0 | AO14: 0 | AP14: 0 | AQ14: 0 | AR14: 0 | AS14: 0 | AT14: 0.2707832745 | AU14: 1.000000086 | AV14: 0 | AW14: 0 | AX14: 1.000000086 | AY14: 0 | AZ14: 0 | BA14: 0 | BB14: 0 | BC14: 0 | BD14: 0 | BE14: 0 | BF14: 0 | BG14: 0 | BH14: 0 | BI14: 0 | BJ14: 0 | BK14: 0 | BL14: 0 | BM14: 0.2707832745 | BN14: 1.000000086
A15: UC12 | B15: Garage Block Between Hughenden Road and The Ridgeway, St Albans, AL4 9RH | C15: 0.2218804581 | D15: 0 | E15: 0 | F15: 0 | G15: 0 | H15: 0 | I15: 0 | J15: 0 | K15: 0 | L15: 0 | M15: 0 | N15: 0 | P15: 0 | Q15: 1 | R15: 0 | S15: 0 | T15: 0 | U15: 0 | V15: 0 | W15: 0 | X15: 0 | Y15: 0 | Z15: 0 | AA15: 0 | AB15: 0 | AC15: 0 | AD15: 0 | AE15: 0 | AF15: 0 | AG15: 0 | AH15: 0 | AI15: 0 | AJ15: 0.0001171933954 | AK15: 0.0005281825919 | AL15: 0 | AM15: 0 | AN15: 0.0001171965675 | AO15: 0.0005281968884 | AP15: 0 | AQ15: 0 | AR15: 0 | AS15: 0 | AT15: 0.2218806564 | AU15: 1.000000894 | AV15: 0 | AW15: 0 | AX15: 1.000000894 | AY15: 0 | AZ15: 0 | BA15: 0 | BB15: 0 | BC15: 0 | BD15: 0 | BE15: 0 | BF15: 0 | BG15: 0 | BH15: 0 | BI15: 0 | BJ15: 0 | BK15: 0 | BL15: 0 | BM15: 0.2218806313 | BN15: 1.000000781
A16: UC27 | B16: Berkeley House, Barnet Road, London Colney, AL2 1BG | C16: 0.1445291618 | D16: 0 | E16: 0 | F16: 0 | G16: 0 | H16: 0 | I16: 0 | J16: 0 | K16: 0 | L16: 0 | M16: 0.02842370803 | N16: 0.1966641726 | P16: 0.1966641726 | Q16: 0.8033358274 | R16: 0 | S16: 0 | T16: 0 | U16: 0 | V16: 0.02842364603 | W16: 0.1966637436 | X16: 0.02842364603 | Y16: 0.1966637436 | Z16: 0.02842360033 | AA16: 0.1966634274 | AB16: 0 | AC16: 0 | AD16: 0.000885174139 | AE16: 0.006124536583 | AF16: 0 | AG16: 0 | AH16: 0 | AI16: 0 | AJ16: 1.914372294e-06 | AK16: 1.324557806e-05 | AL16: 0 | AM16: 0 | AN16: 1.91470399e-06 | AO16: 1.324787306e-05 | AP16: 0 | AQ16: 0 | AR16: 0.1218681032 | AS16: 0.8432077072 | AT16: 0 | AU16: 0 | AV16: 0 | AW16: 0 | AX16: 0 | AY16: 0 | AZ16: 0 | BA16: 0.02251634383 | BB16: 0.1557910082 | BC16: 0.005907469335 | BD16: 0.04087389189 | BE16: 0.005907469335 | BF16: 0.04087389189 | BG16: 0 | BH16: 0 | BI16: 0 | BJ16: 0 | BK16: 0.1445292773 | BL16: 1.000000799 | BM16: 0.1445292773 | BN16: 1.000000799
A17: UC39 | B17: Garage Block to east of 8 Heath Close, Harpenden, AL5 1QN | C17: 0.1276285904 | D17: 0 | E17: 0 | F17: 0 | G17: 0 | H17: 0 | I17: 0 | J17: 0 | K17: 0 | L17: 0 | M17: 0 | N17: 0 | P17: 0 | Q17: 1 | R17: 0 | S17: 0 | T17: 0 | U17: 0 | V17: 0 | W17: 0 | X17: 0 | Y17: 0 | Z17: 0 | AA17: 0 | AB17: 0 | AC17: 0 | AD17: 0 | AE17: 0 | AF17: 0.01610322698 | AG17: 0.1261725678 | AH17: 0.04195450903 | AI17: 0.3287234381 | AJ17: 0.1215077707 | AK17: 0.9520419389 | AL17: 0.07372859065 | AM17: 0.5776808349 | AN17: 0.1161953935 | AO17: 0.9104182151 | AP17: 0 | AQ17: 0 | AR17: 0.1276284233 | AS17: 0.9999986904 | AT17: 0 | AU17: 0 | AV17: 0 | AW17: 0 | AX17: 0 | AY17: 0 | AZ17: 0 | BA17: 0 | BB17: 0 | BC17: 0 | BD17: 0 | BE17: 0 | BF17: 0 | BG17: 0 | BH17: 0 | BI17: 0 | BJ17: 0 | BK17: 0 | BL17: 0 | BM17: 0.1276284233 | BN17: 0.9999986904
A18: UC43 | B18: Garage block to west of 32-46 Riverside Road, St Albans, AL1 1SD | C18: 0.06049506836 | D18: 0 | E18: 0 | F18: 0 | G18: 0 | H18: 0 | I18: 0 | J18: 0 | K18: 0 | L18: 0 | M18: 0 | N18: 0 | P18: 0 | Q18: 1 | R18: 0 | S18: 0 | T18: 0 | U18: 0 | V18: 0 | W18: 0 | X18: 0 | Y18: 0 | Z18: 0 | AA18: 0 | AB18: 0 | AC18: 0 | AD18: 0 | AE18: 0 | AF18: 0 | AG18: 0 | AH18: 0.03146876484 | AI18: 0.5201872763 | AJ18: 0.05365762245 | AK18: 0.8869751519 | AL18: 0.03400787997 | AM18: 0.5621595427 | AN18: 0.0491633702 | AO18: 0.812683935 | AP18: 0 | AQ18: 0 | AR18: 0.06049496526 | AS18: 0.9999982957 | AT18: 0 | AU18: 0 | AV18: 0 | AW18: 0 | AX18: 0 | AY18: 0 | AZ18: 0 | BA18: 0 | BB18: 0 | BC18: 0 | BD18: 0 | BE18: 0 | BF18: 0 | BG18: 0 | BH18: 0 | BI18: 0.06049500907 | BJ18: 0.9999990199 | BK18: 0.06049500907 | BL18: 0.9999990199 | BM18: 0.06049500907 | BN18: 0.9999990199
A19: UC17 | B19: Garage Block off Cotlandswick, London Colney, AL2 1ED | C19: 0.1136766571 | D19: 0 | E19: 0 | F19: 0 | G19: 0 | H19: 0 | I19: 0 | J19: 0 | K19: 0 | L19: 0 | M19: 0 | N19: 0 | P19: 0 | Q19: 1 | R19: 0 | S19: 0 | T19: 0 | U19: 0 | V19: 0 | W19: 0 | X19: 0 | Y19: 0 | Z19: 0 | AA19: 0 | AB19: 0 | AC19: 0 | AD19: 0 | AE19: 0 | AF19: 0 | AG19: 0 | AH19: 0.01119394497 | AI19: 0.09847179938 | AJ19: 0.06536457974 | AK19: 0.5750044152 | AL19: 0.03176711259 | AM19: 0.2794515022 | AN19: 0.06348968134 | AO19: 0.5585111575 | AP19: 0 | AQ19: 0 | AR19: 0.0263427984 | AS19: 0.2317344569 | AT19: 0.08733384289 | AU19: 0.768265404 | AV19: 0 | AW19: 0 | AX19: 0.768265404 | AY19: 0 | AZ19: 0 | BA19: 0 | BB19: 0 | BC19: 0 | BD19: 0 | BE19: 0 | BF19: 0 | BG19: 0 | BH19: 0 | BI19: 0 | BJ19: 0 | BK19: 0.1136766407 | BL19: 0.9999998556 | BM19: 0.1136766407 | BN19: 0.9999998556
A20: UC32 | B20: Garages off Creighton Avenue, St Albans, AL1 2LZ | C20: 0.1398521309 | D20: 0 | E20: 0 | F20: 0 | G20: 0 | H20: 0 | I20: 0 | J20: 0 | K20: 0 | L20: 0 | M20: 0 | N20: 0 | P20: 0 | Q20: 1 | R20: 0 | S20: 0 | T20: 0 | U20: 0 | V20: 0 | W20: 0 | X20: 0 | Y20: 0 | Z20: 0 | AA20: 0 | AB20: 0 | AC20: 0 | AD20: 0 | AE20: 0 | AF20: 0 | AG20: 0 | AH20: 0.02 | AI20: 0.1430081892 | AJ20: 0.05142762738 | AK20: 0.3677285935 | AL20: 0.03036107806 | AM20: 0.2170941398 | AN20: 0.04826068335 | AO20: 0.3450836468 | AP20: 0.1398521539 | AQ20: 1.000000164 | AR20: 0 | AS20: 0 | AT20: 0 | AU20: 0 | AV20: 0 | AW20: 0 | AX20: 0 | AY20: 0 | AZ20: 0 | BA20: 0 | BB20: 0 | BC20: 0 | BD20: 0 | BE20: 0 | BF20: 0 | BG20: 0 | BH20: 0 | BI20: 0 | BJ20: 0 | BK20: 0 | BL20: 0 | BM20: 0.1398521539 | BN20: 1.000000164
A21: UC26 | B21: Garage Block to Malvern Close, St Albans, AL4 9SZ | C21: 0.1323684761 | D21: 0 | E21: 0 | F21: 0 | G21: 0 | H21: 0 | I21: 0 | J21: 0 | K21: 0 | L21: 0 | M21: 0 | N21: 0 | P21: 0 | Q21: 1 | R21: 0 | S21: 0 | T21: 0 | U21: 0 | V21: 0 | W21: 0 | X21: 0 | Y21: 0 | Z21: 0 | AA21: 0 | AB21: 0 | AC21: 0 | AD21: 0 | AE21: 0 | AF21: 0 | AG21: 0 | AH21: 0 | AI21: 0 | AJ21: 0 | AK21: 0 | AL21: 0 | AM21: 0 | AN21: 0 | AO21: 0 | AP21: 0 | AQ21: 0 | AR21: 0 | AS21: 0 | AT21: 0.132368438 | AU21: 0.9999997122 | AV21: 0 | AW21: 0 | AX21: 0.9999997122 | AY21: 0 | AZ21: 0 | BA21: 0 | BB21: 0 | BC21: 0 | BD21: 0 | BE21: 0 | BF21: 0 | BG21: 0 | BH21: 0 | BI21: 0 | BJ21: 0 | BK21: 0 | BL21: 0 | BM21: 0.132368438 | BN21: 0.9999997122
A22: UC24 | B22: Garages Rear of Hill End Lane (North), St Albans, AL4 0AE | C22: 0.2076703682 | D22: 0 | E22: 0 | F22: 0 | G22: 0 | H22: 0 | I22: 0 | J22: 0 | K22: 0 | L22: 0 | M22: 0 | N22: 0 | P22: 0 | Q22: 1 | R22: 0 | S22: 0 | T22: 0 | U22: 0 | V22: 0 | W22: 0 | X22: 0 | Y22: 0 | Z22: 0 | AA22: 0 | AB22: 0 | AC22: 0 | AD22: 0 | AE22: 0 | AF22: 0.06018400341 | AG22: 0.2898054447 | AH22: 0.08512724828 | AI22: 0.4099152374 | AJ22: 0.1271452702 | AK22: 0.6122456051 | AL22: 0.103955848 | AM22: 0.5005810356 | AN22: 0.1231180406 | AO22: 0.5928531914 | AP22: 0 | AQ22: 0 | AR22: 0 | AS22: 0 | AT22: 0 | AU22: 0 | AV22: 0 | AW22: 0 | AX22: 0 | AY22: 0 | AZ22: 0 | BA22: 0 | BB22: 0 | BC22: 0 | BD22: 0 | BE22: 0 | BF22: 0 | BG22: 0 | BH22: 0 | BI22: 0 | BJ22: 0 | BK22: 0.02243170181 | BL22: 0.1080159004 | BM22: 0.2076703542 | BN22: 0.9999999325
A23: UC36 | B23: Garages off Park Street Lane, Park Street, AL2 2ND | C23: 0.1286786285 | D23: 0 | E23: 0 | F23: 0 | G23: 0 | H23: 0 | I23: 0 | J23: 0 | K23: 0 | L23: 0 | M23: 0 | N23: 0 | P23: 0 | Q23: 1 | R23: 0 | S23: 0 | T23: 0 | U23: 0 | V23: 0 | W23: 0 | X23: 0 | Y23: 0 | Z23: 0 | AA23: 0 | AB23: 0 | AC23: 0 | AD23: 0 | AE23: 0 | AF23: 0 | AG23: 0 | AH23: 0.02571968197 | AI23: 0.1998753194 | AJ23: 0.0556651957 | AK23: 0.4325908376 | AL23: 0.03859058816 | AM23: 0.29989897 | AN23: 0.05698147267 | AO23: 0.4428200185 | AP23: 0 | AQ23: 0 | AR23: 0.1286785731 | AS23: 0.9999995689 | AT23: 0 | AU23: 0 | AV23: 0 | AW23: 0 | AX23: 0 | AY23: 0 | AZ23: 0 | BA23: 0 | BB23: 0 | BC23: 0 | BD23: 0 | BE23: 0 | BF23: 0 | BG23: 0 | BH23: 0 | BI23: 0.05401778688 | BJ23: 0.4197883323 | BK23: 0.1286785731 | BL23: 0.9999995689 | BM23: 0.1286785731 | BN23: 0.9999995689
A24: UC49 | B24: Garage Block rear of 18-30 Furse Avenue, St Albans, AL4 9NE | C24: 0.1188434837 | D24: 0 | E24: 0 | F24: 0 | G24: 0 | H24: 0 | I24: 0 | J24: 0 | K24: 0 | L24: 0 | M24: 0 | N24: 0 | P24: 0 | Q24: 1 | R24: 0 | S24: 0 | T24: 0 | U24: 0 | V24: 0 | W24: 0 | X24: 0 | Y24: 0 | Z24: 0 | AA24: 0 | AB24: 0 | AC24: 0 | AD24: 0 | AE24: 0 | AF24: 0 | AG24: 0 | AH24: 0 | AI24: 0 | AJ24: 0.000115859746 | AK24: 0.0009748935522 | AL24: 4.099243003e-05 | AM24: 0.0003449278727 | AN24: 0.00011585624 | AO24: 0.0009748640511 | AP24: 0 | AQ24: 0 | AR24: 0 | AS24: 0 | AT24: 0.1188436043 | AU24: 1.000001014 | AV24: 0 | AW24: 0 | AX24: 1.000001014 | AY24: 0 | AZ24: 0 | BA24: 0 | BB24: 0 | BC24: 0 | BD24: 0 | BE24: 0 | BF24: 0 | BG24: 0 | BH24: 0 | BI24: 0 | BJ24: 0 | BK24: 0 | BL24: 0 | BM24: 0.1188436043 | BN24: 1.000001014
A25: UC8 | B25: Public Hall, 6 Southdown Road, Harpenden, AL5 1TE | C25: 0.2636560722 | D25: 0 | E25: 0 | F25: 0 | G25: 0 | H25: 0 | I25: 0 | J25: 0 | K25: 0 | L25: 0 | M25: 0 | N25: 0 | P25: 0 | Q25: 1 | R25: 0 | S25: 0 | T25: 0 | U25: 0 | V25: 0 | W25: 0 | X25: 0 | Y25: 0 | Z25: 0 | AA25: 0 | AB25: 0 | AC25: 0 | AD25: 0 | AE25: 0 | AF25: 0.01889315846 | AG25: 0.07165834757 | AH25: 0.04280898557 | AI25: 0.1623667728 | AJ25: 0.1024302159 | AK25: 0.3884993622 | AL25: 0.07409708998 | AM25: 0.2810369181 | AN25: 0.09906368954 | AO25: 0.375730734 | AP25: 0 | AQ25: 0 | AR25: 0.263656473 | AS25: 1.00000152 | AT25: 0 | AU25: 0 | AV25: 0 | AW25: 0 | AX25: 0 | AY25: 0 | AZ25: 0 | BA25: 0 | BB25: 0 | BC25: 0 | BD25: 0 | BE25: 0 | BF25: 0 | BG25: 0 | BH25: 0 | BI25: 0.2589298967 | BJ25: 0.9820744674 | BK25: 0.263656473 | BL25: 1.00000152 | BM25: 0.263656473 | BN25: 1.00000152
A26: OS1 | B26: Land to the North of Bricket Wood, bounded by the M25 and A405 North Orbital | C26: 6.523466769 | D26: 0 | E26: 0 | F26: 0 | G26: 0 | H26: 0 | I26: 0 | J26: 0 | K26: 0 | L26: 0 | M26: 0 | N26: 0 | P26: 0 | Q26: 1 | R26: 0 | S26: 0 | T26: 0 | U26: 0 | V26: 0 | W26: 0 | X26: 0 | Y26: 0 | Z26: 0 | AA26: 0 | AB26: 0 | AC26: 0 | AD26: 0 | AE26: 0 | AF26: 0.08792912533 | AG26: 0.01347889526 | AH26: 0.2718301021 | AI26: 0.04166957719 | AJ26: 0.8341653556 | AK26: 0.1278714808 | AL26: 0.5238787176 | AM26: 0.0803067964 | AN26: 0.7741230798 | AO26: 0.1186674367 | AP26: 0 | AQ26: 0 | AR26: 0 | AS26: 0 | AT26: 3.555487163 | AU26: 0.5450303173 | AV26: 0.4584245907 | AW26: 0.07027315489 | AX26: 0.6153034722 | AY26: 0 | AZ26: 0 | BA26: 0 | BB26: 0 | BC26: 0 | BD26: 0 | BE26: 0 | BF26: 0 | BG26: 0 | BH26: 0 | BI26: 6.523466543 | BJ26: 0.9999999654 | BK26: 6.523466543 | BL26: 0.9999999654 | BM26: 6.523466543 | BN26: 0.9999999654
B27: Harpenden Station Car Park | C27: 1.244361927 | D27: 0 | E27: 0 | F27: 0 | G27: 0 | H27: 0 | I27: 0 | J27: 0 | K27: 0 | L27: 0 | M27: 0 | N27: 0 | P27: 0 | Q27: 1 | R27: 0 | S27: 0 | T27: 0 | U27: 0 | V27: 0 | W27: 0 | X27: 0 | Y27: 0 | Z27: 0 | AA27: 0 | AB27: 0 | AC27: 0 | AD27: 0 | AE27: 0 | AF27: 0 | AG27: 0 | AH27: 0.01659320451 | AI27: 0.01333470926 | AJ27: 0.1444718703 | AK27: 0.1161011657 | AL27: 0.05864100673 | AM27: 0.04712536237 | AN27: 0.129857455 | AO27: 0.1043566604 | AP27: 1.244362653 | AQ27: 1.000000583 | AR27: 0 | AS27: 0 | AT27: 0 | AU27: 0 | AV27: 0 | AW27: 0 | AX27: 0 | AY27: 0 | AZ27: 0 | BA27: 0 | BB27: 0 | BC27: 0 | BD27: 0 | BE27: 0 | BF27: 0 | BG27: 0 | BH27: 0 | BI27: 1.244362653 | BJ27: 1.000000583 | BK27: 1.244362653 | BL27: 1.000000583 | BM27: 1.244362653 | BN27: 1.000000583
B28: 44 – 52 Lattimore Road, St Albans | C28: 0.113739122 | D28: 0 | E28: 0 | F28: 0 | G28: 0 | H28: 0 | I28: 0 | J28: 0 | K28: 0 | L28: 0 | M28: 0 | N28: 0 | P28: 0 | Q28: 1 | R28: 0 | S28: 0 | T28: 0 | U28: 0 | V28: 0 | W28: 0 | X28: 0 | Y28: 0 | Z28: 0 | AA28: 0 | AB28: 0 | AC28: 0 | AD28: 0 | AE28: 0 | AF28: 0.004636173756 | AG28: 0.04076146953 | AH28: 0.01683741531 | AI28: 0.1480353902 | AJ28: 0.07024750956 | AK28: 0.617619587 | AL28: 0.025974589 | AM28: 0.2283698743 | AN28: 0.05950946817 | AO28: 0.5232101947 | AP28: 0.1137391225 | AQ28: 1.000000004 | AR28: 0 | AS28: 0 | AT28: 0 | AU28: 0 | AV28: 0 | AW28: 0 | AX28: 0 | AY28: 0 | AZ28: 0 | BA28: 0 | BB28: 0 | BC28: 0 | BD28: 0 | BE28: 0 | BF28: 0 | BG28: 0 | BH28: 0 | BI28: 0 | BJ28: 0 | BK28: 0.1137391225 | BL28: 1.000000004 | BM28: 0.1137391225 | BN28: 1.000000004
B29: Car Park to the rear of Portman House, Therfield Road St Albans | C29: 0.1409151627 | D29: 0 | E29: 0 | F29: 0 | G29: 0 | H29: 0 | I29: 0 | J29: 0 | K29: 0 | L29: 0 | M29: 0 | N29: 0 | P29: 0 | Q29: 1 | R29: 0 | S29: 0 | T29: 0 | U29: 0 | V29: 0 | W29: 0 | X29: 0 | Y29: 0 | Z29: 0 | AA29: 0 | AB29: 0 | AC29: 0 | AD29: 0 | AE29: 0 | AF29: 0 | AG29: 0 | AH29: 0 | AI29: 0 | AJ29: 0.05213064662 | AK29: 0.3699434868 | AL29: 0.03570626249 | AM29: 0.2533883638 | AN29: 0.04785802291 | AO29: 0.3396229476 | AP29: 0.1409153709 | AQ29: 1.000001478 | AR29: 0 | AS29: 0 | AT29: 0 | AU29: 0 | AV29: 0 | AW29: 0 | AX29: 0 | AY29: 0 | AZ29: 0 | BA29: 0 | BB29: 0 | BC29: 0 | BD29: 0 | BE29: 0 | BF29: 0 | BG29: 0 | BH29: 0 | BI29: 0 | BJ29: 0 | BK29: 0.1409153709 | BL29: 1.000001478 | BM29: 0.1409153709 | BN29: 1.000001478
B30: Garage Block B off Cotlandswick, London Colney | C30: 0.1184763329 | D30: 0 | E30: 0 | F30: 0 | G30: 0 | H30: 0 | I30: 0 | J30: 0 | K30: 0 | L30: 0 | M30: 0 | N30: 0 | P30: 0 | Q30: 1 | R30: 0 | S30: 0 | T30: 0 | U30: 0 | V30: 0 | W30: 0 | X30: 0 | Y30: 0 | Z30: 0 | AA30: 0 | AB30: 0 | AC30: 0 | AD30: 0 | AE30: 0 | AF30: 0.01237376565 | AG30: 0.1044408225 | AH30: 0.03640371129 | AI30: 0.3072656827 | AJ30: 0.05196558489 | AK30: 0.4386157441 | AL30: 0.040429893 | AM30: 0.3412486868 | AN30: 0.04756558402 | AO30: 0.4014775177 | AP30: 0 | AQ30: 0 | AR30: 0 | AS30: 0 | AT30: 0.1184763356 | AU30: 1.000000023 | AV30: 0 | AW30: 0 | AX30: 1.000000023 | AY30: 0 | AZ30: 0 | BA30: 0 | BB30: 0 | BC30: 0 | BD30: 0 | BE30: 0 | BF30: 0 | BG30: 0 | BH30: 0 | BI30: 0 | BJ30: 0 | BK30: 0.1184763262 | BL30: 0.9999999442 | BM30: 0.1184763262 | BN30: 0.9999999442
B31: 186 Sandridge Road, St Albans | C31: 0.1939038948 | D31: 0 | E31: 0 | F31: 0 | G31: 0 | H31: 0 | I31: 0 | J31: 0 | K31: 0 | L31: 0 | M31: 0 | N31: 0 | P31: 0 | Q31: 1 | R31: 0 | S31: 0 | T31: 0 | U31: 0 | V31: 0 | W31: 0 | X31: 0 | Y31: 0 | Z31: 0 | AA31: 0 | AB31: 0 | AC31: 0 | AD31: 0 | AE31: 0 | AF31: 0 | AG31: 0 | AH31: 1.776962967e-05 | AI31: 9.164142727e-05 | AJ31: 0.02244488669 | AK31: 0.1157526346 | AL31: 0.001665561315 | AM31: 0.008589622795 | AN31: 0.01678768773 | AO31: 0.08657736221 | AP31: 0.193903848 | AQ31: 0.9999997586 | AR31: 0 | AS31: 0 | AT31: 0 | AU31: 0 | AV31: 0 | AW31: 0 | AX31: 0 | AY31: 0 | AZ31: 0 | BA31: 0 | BB31: 0 | BC31: 0 | BD31: 0 | BE31: 0 | BF31: 0 | BG31: 0 | BH31: 0 | BI31: 0 | BJ31: 0 | BK31: 0.193903848 | BL31: 0.9999997586 | BM31: 0.193903848 | BN31: 0.9999997586
B32: Motor Repair Garage, Park Street Lane, Park Street | C32: 0.2922925598 | D32: 0 | E32: 0 | F32: 0 | G32: 0 | H32: 0 | I32: 0 | J32: 0 | K32: 0 | L32: 0 | M32: 0 | N32: 0 | P32: 0 | Q32: 1 | R32: 0 | S32: 0 | T32: 0 | U32: 0 | V32: 0 | W32: 0 | X32: 0 | Y32: 0 | Z32: 0 | AA32: 0 | AB32: 0 | AC32: 0 | AD32: 0 | AE32: 0 | AF32: 0.04409968943 | AG32: 0.1508751693 | AH32: 0.06426489137 | AI32: 0.2198649579 | AJ32: 0.09718770215 | AK32: 0.3325014575 | AL32: 0.09060407594 | AM32: 0.3099773597 | AN32: 0.1100495328 | AO32: 0.3765047351 | AP32: 0 | AQ32: 0 | AR32: 0.2726369994 | AS32: 0.9327538121 | AT32: 0.01965535794 | AU32: 0.06724549525 | AV32: 0 | AW32: 0 | AX32: 0.06724549525 | AY32: 0 | AZ32: 0 | BA32: 0 | BB32: 0 | BC32: 0 | BD32: 0 | BE32: 0 | BF32: 0 | BG32: 0 | BH32: 0 | BI32: 0 | BJ32: 0 | BK32: 0.2922923636 | BL32: 0.9999993287 | BM32: 0.2922923636 | BN32: 0.9999993287
B33: Griffiths Way Retail Park, St Albans AL1 2RJ | C33: 6.435501685 | D33: 0 | E33: 0 | F33: 0 | G33: 0 | H33: 0 | I33: 0 | J33: 0 | K33: 0 | L33: 0 | M33: 0 | N33: 0 | P33: 0 | Q33: 1 | R33: 0 | S33: 0 | T33: 0 | U33: 0 | V33: 0 | W33: 0 | X33: 0 | Y33: 0 | Z33: 0 | AA33: 0 | AB33: 0 | AC33: 0 | AD33: 0 | AE33: 0 | AF33: 0.306 | AG33: 0.04754874056 | AH33: 0.6282964013 | AI33: 0.097629747 | AJ33: 1.689945523 | AK33: 0.2625973242 | AL33: 0.9323109482 | AM33: 0.1448699719 | AN33: 1.588032855 | AO33: 0.2467613144 | AP33: 0.004162117609 | AQ33: 0.0006467433019 | AR33: 6.431339329 | AS33: 0.9993532196 | AT33: 0 | AU33: 0 | AV33: 0 | AW33: 0 | AX33: 0 | AY33: 0 | AZ33: 0 | BA33: 0 | BB33: 0 | BC33: 0 | BD33: 0 | BE33: 0 | BF33: 0 | BG33: 0 | BH33: 0 | BI33: 5.403952997 | BJ33: 0.8397096701 | BK33: 6.070049343 | BL33: 0.9432130764 | BM33: 6.435501686 | BN33: 1
B34: Affinity Water, 107 Holywell Hill Road St Albans | C34: 1.223044198 | D34: 0.2311149751 | E34: 0.1889669854 | F34: 0.319506999 | G34: 0.2612391274 | H34: 0.3639729701 | I34: 0.2975959256 | J34: 0.3803904622 | K34: 0.3110193915 | L34: 0.122052406 | M34: 0.8125713837 | N34: 0.6643843167 | P34: 0.3533649253 | Q34: 0.6466350747 | R34: 0.4330649968 | S34: 0.3540877734 | T34: 0.46701649 | U34: 0.3818475987 | V34: 0.9020658127 | W34: 0.7375578203 | X34: 0.9124657527 | Y34: 0.7460611434 | Z34: 0 | AA34: 0 | AB34: 1.051502635 | AC34: 0.8597421388 | AD34: 0.1473748036 | AE34: 0.1204983466 | AF34: 0.139117444 | AG34: 0.1137468656 | AH34: 0.2849531828 | AI34: 0.2329868236 | AJ34: 0.920223804 | AK34: 0.752404374 | AL34: 0.462051572 | AM34: 0.3777881232 | AN34: 0.8467786996 | AO34: 0.6923533108 | AP34: 0 | AQ34: 0 | AR34: 0.0775 | AS34: 0.06336647534 | AT34: 0.03315588841 | AU34: 0.02710931335 | AV34: 0.765538311 | AW34: 0.6259285742 | AX34: 0.6530378876 | AY34: 0.2485344773 | AZ34: 0.2032097268 | BA34: 0.1723080678 | BB34: 0.1408845797 | BC34: 0.3867667189 | BD34: 0.3162328227 | BE34: 0 | BF34: 0 | BG34: 0 | BH34: 0 | BI34: 1.223044187 | BJ34: 0.9999999913 | BK34: 1.223044187 | BL34: 0.9999999913 | BM34: 1.223044187 | BN34: 0.9999999913
B35: 50 - 54 Lemsford Road St Albans | C35: 0.53290888 | D35: 0 | E35: 0 | F35: 0 | G35: 0 | H35: 0 | I35: 0 | J35: 0 | K35: 0 | L35: 0 | M35: 0 | N35: 0 | P35: 0 | Q35: 1 | R35: 0 | S35: 0 | T35: 0 | U35: 0 | V35: 0 | W35: 0 | X35: 0 | Y35: 0 | Z35: 0 | AA35: 0 | AB35: 0 | AC35: 0 | AD35: 0 | AE35: 0 | AF35: 0 | AG35: 0 | AH35: 0.004841161613 | AI35: 0.009084407851 | AJ35: 0.02905679865 | AK35: 0.05452489111 | AL35: 0.01073625002 | AM35: 0.02014650237 | AN35: 0.0286251355 | AO35: 0.05371487805 | AP35: 0.53290888 | AQ35: 1 | AR35: 0 | AS35: 0 | AT35: 0 | AU35: 0 | AV35: 0 | AW35: 0 | AX35: 0 | AY35: 0 | AZ35: 0 | BA35: 0 | BB35: 0 | BC35: 0 | BD35: 0 | BE35: 0 | BF35: 0 | BG35: 0 | BH35: 0 | BI35: 0 | BJ35: 0 | BK35: 0.53290888 | BL35: 1 | BM35: 0.53290888 | BN35: 1
B36: Ariston Works | C36: 2.517449888 | D36: 0 | E36: 0 | F36: 0 | G36: 0 | H36: 0 | I36: 0 | J36: 0 | K36: 0 | L36: 0 | M36: 0 | N36: 0 | P36: 0 | Q36: 1 | R36: 0 | S36: 0 | T36: 0 | U36: 0 | V36: 0 | W36: 0 | X36: 0 | Y36: 0 | Z36: 0 | AA36: 0 | AB36: 0 | AC36: 0 | AD36: 0 | AE36: 0 | AF36: 0.0176 | AG36: 0.006991201724 | AH36: 0.0228 | AI36: 0.009056784051 | AJ36: 0.1283787544 | AK36: 0.05099555504 | AL36: 0.0368 | AM36: 0.01461796724 | AN36: 0.07195757017 | AO36: 0.0285835164 | AP36: 2.517449888 | AQ36: 1 | AR36: 0 | AS36: 0 | AT36: 0 | AU36: 0 | AV36: 0 | AW36: 0 | AX36: 0 | AY36: 0 | AZ36: 0 | BA36: 0 | BB36: 0 | BC36: 0 | BD36: 0 | BE36: 0 | BF36: 0 | BG36: 0 | BH36: 0 | BI36: 0 | BJ36: 0 | BK36: 2.517449641 | BL36: 0.9999999018 | BM36: 2.517449641 | BN36: 0.9999999018
B37: Car Park and Garage Block to rear of Telford Court Alma Road St Albans | C37: 0.4845299004 | D37: 0 | E37: 0 | F37: 0 | G37: 0 | H37: 0 | I37: 0 | J37: 0 | K37: 0 | L37: 0 | M37: 0 | N37: 0 | P37: =N37-K37 -> 0 | Q37: =100%-P37 -> 1 | R37: 0 | S37: 0 | T37: 0 | U37: 0 | V37: 0 | W37: 0 | X37: 0 | Y37: 0 | Z37: 0 | AA37: 0 | AB37: 0 | AC37: 0 | AD37: 0 | AE37: 0 | AF37: 0.001458021976 | AG37: 0.003009147578 | AH37: 0.01865167486 | AI37: 0.0384943733 | AJ37: 0.02566045609 | AK37: 0.05295948934 | AL37: 0.0209746993 | AM37: 0.04328876151 | AN37: 0.02558235851 | AO37: 0.05279830718 | AP37: 0.4845298295 | AQ37: 0.9999998537 | AR37: 0 | AS37: 0 | AT37: 0 | AU37: 0 | AV37: 0 | AW37: 0 | AX37: 0 | AY37: 0 | AZ37: 0 | BA37: 0 | BB37: 0 | BC37: 0 | BD37: 0 | BE37: 0 | BF37: 0 | BG37: 0 | BH37: 0 | BI37: 0 | BJ37: 0 | BK37: 0.4843490033 | BL37: 0.9996266546 | BM37: 0.4845298295 | BN37: 0.9999998537
B38: 52 Victoria Street and 16 New Kent Road, St Albans | C38: 0.056 | D38: 0 | E38: 0 | F38: 0 | G38: 0 | H38: 0 | I38: 0 | J38: 0 | K38: 0 | L38: 0 | M38: 0 | N38: 0 | P38: =N38-K38 -> 0 | Q38: =100%-P38 -> 1 | R38: 0 | S38: 0 | T38: 0 | U38: 0 | V38: 0 | W38: 0 | X38: 0 | Y38: 0 | Z38: 0 | AA38: 0 | AB38: 0 | AC38: 0 | AD38: 0 | AE38: 0 | AF38: 0 | AG38: 0 | AH38: 0 | AI38: 0 | AJ38: 0 | AK38: 0 | AL38: 0 | AM38: 0 | AN38: 0 | AO38: 0 | AP38: 0.056 | AQ38: 1 | AR38: 0 | AS38: 0 | AT38: 0 | AU38: 0 | AV38: 0 | AW38: 0 | AX38: 0 | AY38: 0 | AZ38: 0 | BA38: 0 | BB38: 0 | BC38: 0 | BD38: 0 | BE38: 0 | BF38: 0 | BG38: 0 | BH38: 0 | BI38: 0.056 | BJ38: 1 | BK38: 0.056 | BL38: 1 | BM38: 0.056 | BN38: 1
B39: Brethrens Meeting Hall Blackwater Lane | C39: 1.655 | D39: 0 | E39: 0 | F39: 0 | G39: 0 | H39: 0 | I39: 0 | J39: 0 | K39: 0 | L39: 0 | M39: 0 | N39: 0 | P39: 0 | Q39: 1 | R39: 0 | S39: 0 | T39: 0 | U39: 0 | V39: 0 | W39: 0 | X39: 0 | Y39: 0 | Z39: 0 | AA39: 0 | AB39: 0 | AC39: 0 | AD39: 0 | AE39: 0 | AF39: 0 | AG39: 0 | AH39: 0 | AI39: 0 | AJ39: 0 | AK39: 0 | AL39: 0 | AM39: 0 | AN39: 0 | AO39: 0 | AP39: 0 | AQ39: 0 | AR39: 0 | AS39: 0 | AT39: 0 | AU39: 0 | AV39: 0 | AW39: 0 | AX39: 0 | AY39: 0 | AZ39: 0 | BA39: 0 | BB39: 0 | BC39: 0 | BD39: 0 | BE39: 0 | BF39: 0 | BG39: 0 | BH39: 0 | BI39: 0 | BJ39: 0 | BK39: 0 | BL39: 0 | BM39: 1.655 | BN39: 1
B40: Petrol Filling Station 551 Watford Road Chiswell Green | C40: 0.69 | D40: 0 | E40: 0 | F40: 0 | G40: 0 | H40: 0 | I40: 0 | J40: 0 | K40: 0 | L40: 0 | M40: 0 | N40: 0 | P40: 0 | Q40: 1 | R40: 0 | S40: 0 | T40: 0 | U40: 0 | V40: 0 | W40: 0 | X40: 0 | Y40: 0 | Z40: 0 | AA40: 0 | AB40: 0 | AC40: 0 | AD40: 0 | AE40: 0 | AF40: 0 | AG40: 0 | AH40: 0 | AI40: 0 | AJ40: 0.00345 | AK40: 0.005 | AL40: 0.0006200044038 | AM40: 0.000898557107 | AN40: 0.003279502889 | AO40: 0.004752902737 | AP40: 0 | AQ40: 0 | AR40: 0.69 | AS40: 1 | AT40: 0 | AU40: 0 | AV40: 0 | AW40: 0 | AX40: 0 | AY40: 0 | AZ40: 0 | BA40: 0 | BB40: 0 | BC40: 0 | BD40: 0 | BE40: 0 | BF40: 0 | BG40: 0 | BH40: 0 | BI40: 0.69 | BJ40: 1 | BK40: 0.69 | BL40: 1 | BM40: 0.69 | BN40: 1
B41: Telephone Exchange Bowers Way Harpenden AL5 4EP | C41: 0.219 | D41: 0 | E41: 0 | F41: 0 | G41: 0 | H41: 0 | I41: 0 | J41: 0 | K41: 0 | L41: 0 | M41: 0 | N41: 0 | P41: 0 | Q41: 1 | R41: 0 | S41: 0 | T41: 0 | U41: 0 | V41: 0 | W41: 0 | X41: 0 | Y41: 0 | Z41: 0 | AA41: 0 | AB41: 0 | AC41: 0 | AD41: 0 | AE41: 0 | AF41: 0 | AG41: 0 | AH41: 0 | AI41: 0 | AJ41: 0.000438 | AK41: =AJ41/C41 -> 0.002 | AL41: 0 | AM41: 0 | AN41: 0.006939463491 | AO41: 0.0316870479 | AP41: 0.219 | AQ41: 1 | AR41: 0 | AS41: 0 | AT41: 0 | AU41: 0 | AV41: 0 | AW41: 0 | AX41: 0 | AY41: 0 | AZ41: 0 | BA41: 0 | BB41: 0 | BC41: 0 | BD41: 0 | BE41: 0 | BF41: 0 | BG41: 0 | BH41: 0 | BI41: 0.219 | BJ41: 1 | BK41: 0.219 | BL41: 1 | BM41: 0.219 | BN41: 1

Sheet Sites
A1: Site_code | B1: Site_name | C1: Area_ha | D1: Settlement | E1: Proposed use | F1: Former use | G1: Deliverabilty | H1: Core Strategy Spatial Policy Area | I1: Source
A2: B3 | B2: West Redbourn, Redbourne, AL3 7HZ | C2: 27.01710883 | E2: Residential | G2: Not developable within the next 15 years | I2: HELAA_Sites_Not_Deliverable
A3: B4 | B3: East St Albans, AL4 9JJ | C3: 21.68629346 | E3: Residential | G3: Potentially developable | I3: HELAA_sites_with_potential
A4: B5 | B4: Glinwell, Hatfield Road, St Albans, AL4 0HE | C4: 20.8470975 | E4: Residential | G4: Potentially developable in part | I4: HELAA_sites_with_potential
A5: B8 | B5: Harper Lane, north of Radlett, WD7 7HU | C5: 11.40124468 | E5: Residential | G5: Potentially developable in part | I5: HELAA_sites_with_potential
A6: M20 | B6: Lower Luton Road, Harpenden, AL5 5AF | C6: 0.7358806713 | E6: Residential | G6: Potentially developable in part | I6: HELAA_sites_with_potential
A7: M25 | B7: Baulk Close, Harpenden, AL5 4LY | C7: 0.5556210068 | E7: Residential | G7: Not developable within the next 15 years | I7: HELAA_Sites_Not_Deliverable
A8: M26 | B8: Highway Chipping Depot, Lower Luton Roa, AL4 8JJ | C8: 0.3392220089 | E8: Residential | G8: Potentially developable | I8: HELAA_sites_with_potential
A9: M5 | B9: Sewage Treatment Works, Piggottshill Lane, Harpenden, AL5 5UN | C9: 4.099547299 | E9: Residential | G9: Not developable within the next 15 years | I9: HELAA_Sites_Not_Deliverable
A10: M6 | B10: South of Harpenden Lane, Redbourn, AL3 7RQ | C10: 12.5641162 | E10: Residential | G10: Potentially developable | I10: HELAA_sites_with_potential
A11: OS1 | B11: Land to the North of Bricket Wood, bounded by the M25 and A405 North Orbital | C11: 6.523311178 | E11: Community Facilites | G11: Not developable within the next 15 years | I11: HELAA_Sites_Not_Deliverable
A12: P1 | B12: Smallford Works, Smallford Lane, AL4 0SA | C12: 3.335042676 | E12: Residential | G12: Not developable within the next 15 years | I12: HELAA_Sites_Not_Deliverable
A13: P2 | B13: Land at North Orbital Road, AL2 1DL | C13: 1.882035039 | E13: Residential | G13: Potentially developable | I13: HELAA_sites_with_potential
A14: UC10 | B14: Garage Block rear of 109-179 Hughenden Road, St Albans, AL4 9QW | C14: 0.2707832745 | E14: Residential | G14: Not developable within the next 15 years | I14: HELAA_Sites_Not_Deliverable
A15: UC12 | B15: Garage Block Between Hughenden Road and The Ridgeway, St Albans, AL4 9RH | C15: 0.2218806313 | E15: Residential | G15: Potentially developable in part | I15: HELAA_sites_with_potential
A16: UC17 | B16: Garage Block off Cotlandswick, London Colney, AL2 1ED | C16: 0.1136766407 | E16: Residential | G16: Not developable within the next 15 years | I16: HELAA_Sites_Not_Deliverable
A17: UC24 | B17: Garages Rear of Hill End Lane (North), St Albans, AL4 0AE | C17: 0.2076703542 | E17: Residential | G17: Not developable within the next 15 years | I17: HELAA_Sites_Not_Deliverable
A18: UC26 | B18: Garage Block to Malvern Close, St Albans, AL4 9SZ | C18: 0.132368438 | E18: Residential | G18: Not developable within the next 15 years | I18: HELAA_Sites_Not_Deliverable
A19: UC27 | B19: Berkeley House, Barnet Road, London Colney, AL2 1BG | C19: 0.1445292773 | E19: Residential | G19: Not developable within the next 15 years | I19: HELAA_Sites_Not_Deliverable
A20: UC32 | B20: Garages off Creighton Avenue, St Albans, AL1 2LZ | C20: 0.1398521539 | E20: Residential | G20: Potentially developable in part | I20: HELAA_sites_with_potential
A21: UC36 | B21: Garages off Park Street Lane, Park Street, AL2 2ND | C21: 0.1286785731 | E21: Residential | G21: Not developable within the next 15 years | I21: HELAA_Sites_Not_Deliverable
A22: UC39 | B22: Garage Block to east of 8 Heath Close, Harpenden, AL5 1QN | C22: 0.1276284233 | E22: Residential | G22: Not developable within the next 15 years | I22: HELAA_Sites_Not_Deliverable
A23: UC43 | B23: Garage block to west of 32-46 Riverside Road, St Albans, AL1 1SD | C23: 0.0604950091 | E23: Residential | G23: Not developable within the next 15 years | I23: HELAA_Sites_Not_Deliverable
A24: UC46 | B24: Garage Blocks adj. to 76 Oakley Road and 151 Grove Road, Harpenden, AL5 1HJ | C24: 0.1172504074 | E24: Residential | G24: Not developable within the next 15 years | I24: HELAA_Sites_Not_Deliverable
A25: UC49 | B25: Garage Block rear of 18-30 Furse Avenue, St Albans, AL4 9NE | C25: 0.1188436043 | E25: Residential | G25: Potentially developable in part | I25: HELAA_sites_with_potential
A26: UC8 | B26: Public Hall, 6 Southdown Road, Harpenden, AL5 1TE | C26: 0.263656473 | E26: Residential | G26: Not developable within the next 15 years | I26: HELAA_Sites_Not_Deliverable
A27: N/A | B27: Harpenden Station Car Park | C27: 1.244361927 | E27: Residential | I27: Regulation 19 sites for inclusion in Local Plan
A28: N/A | B28: 44 – 52 Lattimore Road, St Albans | C28: 0.113739122 | E28: Residential | I28: Regulation 19 sites for inclusion in Local Plan
A29: N/A | B29: Car Park to the rear of Portman House, Therfield Road St Albans | C29: 0.1409151627 | E29: Residential | I29: Regulation 19 sites for inclusion in Local Plan
A30: N/A | B30: Garage Block B off Cotlandswick, London Colney | C30: 0.1184763329 | E30: Residential | I30: Regulation 19 sites for inclusion in Local Plan
A31: N/A | B31: 186 Sandridge Road, St Albans | C31: 0.1939038948 | E31: Residential | I31: Regulation 19 sites for inclusion in Local Plan
A32: N/A | B32: Motor Repair Garage, Park Street Lane, Park Street | C32: 0.2922925598 | E32: Residential | I32: Regulation 19 sites for inclusion in Local Plan
A33: N/A | B33: Griffiths Way Retail Park, St Albans AL1 2RJ | C33: 6.435501685 | E33: Residential | I33: Regulation 19 sites for inclusion in Local Plan
A34: N/A | B34: Affinity Water, 107 Holywell Hill Road St Albans | C34: 1.223044198 | E34: Residential | I34: Regulation 19 sites for inclusion in Local Plan
A35: N/A | B35: 50 - 54 Lemsford Road St Albans | C35: 0.53290888 | E35: Residential | I35: Regulation 19 sites for inclusion in Local Plan
A36: N/A | B36: Ariston Works | C36: 2.517449888 | E36: Residential with community facilities and primary school | I36: Regulation 19 sites for inclusion in Local Plan
A37: N/A | B37: Car Park and Garage Block to rear of Telford Court Alma Road St Albans | C37: 0.4845299004 | E37: Residential | I37: Regulation 19 sites for inclusion in Local Plan
A38: N/A | B38: ` | C38: 0.056 | E38: Residential | I38: Regulation 19 sites for inclusion in Local Plan
A39: N/A | B39: Brethrens Meeting Hall Blackwater Lane | C39: 1.655 | E39: Residential | I39: Regulation 19 sites for inclusion in Local Plan
A40: N/A | B40: Petrol Filling Station 551 Watford Road Chiswell Green | C40: 0.69 | E40: Residential | I40: Regulation 19 sites for inclusion in Local Plan
A41: N/A | B41: Telephone Exchange Bowers Way Harpenden AL5 4EP | C41: 0.219 | E41: Residential | I41: Regulation 19 sites for inclusion in Local Plan
